{"text_format":"2","workbook":"xlsx","n_sheets":15,"sheets":["Nyugat","Kelet","SF","220+","Ryuku","KF","Létsíkok","Makrók","Egyéb labirintusok","Faji cuccok","adatok","Ősi és fattyas cuccok","Avatárok","Kihívás Tornya","Dragnitok"],"not_rendered":{"charts":0,"images":0,"macros":0,"external_links":0,"defined_names":6,"comments":0,"pivot_tables":0},"unopened":[],"bounds":{"document_bytes":16777216,"sheet_cells":100000,"run_cost":"one","rows_first":2000,"rows_last":500,"rows_between":2000,"halvings":0,"cell_chars":16384,"cell_head_chars":4096},"cells_cut":0,"cells_raw":0,"read":"whole","date_system":"1900"}

{"sheet":"Nyugat","index":0,"n_rows":102,"n_cols":10,"rows_kept":102,"cut":false,"hidden":false,"merged":[[94,5,98,5],[94,7,98,7],[94,6,98,6],[94,3,98,3],[94,1,98,1],[15,5,16,5],[1,1,3,1],[18,4,19,4],[1,4,3,4],[15,1,16,1],[15,3,16,3],[15,4,16,4],[32,2,34,2],[50,2,54,2],[50,3,54,3],[36,3,38,3],[18,1,19,1],[18,3,19,3],[71,9,72,9],[71,3,72,3],[71,4,72,4],[71,5,72,5],[71,7,72,7],[89,1,92,1],[89,6,92,6],[56,2,63,2],[66,1,67,1],[68,1,69,1],[65,4,69,4],[65,5,69,5],[89,7,92,7],[74,2,76,2],[74,3,76,3],[74,4,76,4],[74,6,76,6]]}
[]
[null,"Szürke mágustorony (500-506. épület)\n[15,19 - 15,49 - 15,79 - 15,109 - 15,34 - 15,64 - 15,94]","4 kaktusztüske (#114)","1 bordacsont (#16)","1. labirintus\n[20,13 - 26,47 - 22,77 - 29,107]"]
[null,null,"vagy","vagy"]
[null,null,"10 tüske (#22)","2 varányszem (#30)"]
[]
[null,"Tanya","3. labirintus","4. labirintus"]
[null,"(507. épület) [25,16]","[24,20]","[32,16]"]
[null,"(534. épület) [27,91]","[31,95]","[32,88]"]
[]
[null,"Kastély (528. épület) [26,23]","8. labirintus\n[23,19]","9. labirintus\n[22,29]","10. labirintus\n[32,22]"]
[]
[null,"Fekete gránittorony","11. labirintus","12. labirintus"]
[null,"(530. épület) [27,36]","[33,35]","[29,40]"]
[null,"(535. épület) [25,101]","[31,105]","[31,99]"]
[]
[null,"Gnóm lak (531. épület) [25,49]","1 fáklya (#36)","10 szögletes kő (#17)","13. labirintus\n[32,22]","14. labirintus\n[32,22]"]
[null,null,"1 grákóbőr (#41)"]
[]
[null,"Törpe tanya (532. épület) [25,66]","5 tükör (#43)","15. labirintus\n[33,68]","16. labirintus\n[30,61]"]
[null,null,"3 smirglilevél (#29)"]
[]
[null,"Kobudera tanya (532. épület) [28,77]","3 fúvócső (#20)","17. labirintus\n[26,72]","18. labirintus\n[27,81]"]
[]
[null,"Városháza"]
[null,"(Shaddar) (539. épület) [42,28]","5. labirintus [44,23]","6. labirintus [46,33]","19. Labirintus [53,38]"]
[null,"(Qvill) (527. épület) [45,62]","5. labirintus [41,60]","6. labirintus [52,58]","7. Labirintus [47,67]"]
[null,"(Gatin) (540. épület) [44,98]","3 dözmöng szív","20. Labirintus [45,91]","9. Labirintus [22,29]"]
[]
[null,"Vangorf gróf vára","33. Labirintus","34. Labirintus","35. Labirintus","36. Labirintus"]
[null,"(547. épület) [70,15]","[63,12]","[70,4]","[81,23]","[71,18]"]
[null,"(551. épület) [71,70]","[72,65]","[79,75]","[85,60]","[78,79]"]
[]
[null,"Lord Kovács József","6 bronzhegyű nyíl (#94)","37. Labirintus","38. Labirintus","39. Labirintus"]
[null,"(548. épület) [70,31]",null,"[68,24]","[79,31]","[57,81]"]
[null,"(552. épület) [69,83]",null,"[73,89]","[79,83]","[88,25]"]
[]
[null,"Lady Olívia","41. Labirintus","1 obszidián függő (#195)","1 dorony tüdő (#212)","42. Labirintus"]
[null,"(549. épület) [71,56]","[62,55]",null,"1 amniosz (#203)","[75,60]"]
[null,"(553. épület) [75,106]","[69,105]",null,"3 gyöngymangó (#135)","[88,107]"]
[]
[null,"Gnóm kutatóállomás","43. Labirintus","3 fémrúd (#104)","44. Labirintus","2 dözmöng szív (#122)","45. Labirintus"]
[null,"(550. épület) [76,45]","[61,91]","10 sallank karom (#128)","[85,89]","1 vapár ág (#110)","[73,99]"]
[null,"(554. épület) [72,94]","[64,47]","2 vadász tatu bőr (#15)","[89,44]","1 téfea agy (#172)","[87,51]"]
[]
[null,"Helytartói hivatal","46. Labirintus","47. Labirintus","48. Labirintus","49. Labirintus"]
[null,"(Xantrox) (563. épület) [98,19]","[98,12]","[97,18]","[95,26]","[108,20]"]
[null,"(Libertan) (578. épület) [93,53]","[94,47]","[92,52]","[90,44]","[103,56]"]
[null,"(Wargpin) (579. épület) [99,80]","[100,74]","[98,79]","[92,86]","[108,79]"]
[null,"(Huertol) (580. épület) [96,107]","[96,101]","[95,106]","[87,104]","[107,108]"]
[]
[null,"Sötét kastplom","8 vadász tatu bőr (#15)","1 trikornis szarv (#198)","50. Labirintus","51. Labirintus","52. Labirintus"]
[null,"(Xantrox) (566. épület) [97,18]",null,null,"[98,19]","[99,18]","[98,19]"]
[null,"(Libertan) (569. épület) [92,52]",null,null,"[93,53]","[94,52]","[93,53]"]
[null,"(Wargpin) (570. épület) [98,79]",null,null,"[99,80]","[100,79]","[99,80]"]
[null,"(Huertol) (571. épület) [95,106]",null,null,"[96,107]","[97,106]","[96,107]"]
[]
[null,"Elf villa","3 galachmit (#310)",null,"68. labirintus"]
[null,"(600. épület) [140,13]",null,"66. labirintus [131,10]","[140,13]"]
[null,"(601. épület) [140,29]",null,"67. labirintus [131,28]","[140,29]"]
[null,"(602. épület) [140,45]",null,"66. labirintus [130,46]","[140,45]"]
[null,"(603. épület) [140,75]",null,"66. labirintus [128,74]","[140,75]"]
[null,"(604. épület) [140,110]",null,"66. labirintus [131,113]","[140,110]"]
[null,"(605. épület) [140,58]",null,"67. labirintus [133,56]","[140,58]"]
[null,"(606. épület) [140,91]",null,"67. labirintus [130,88]","[140,91]"]
[]
[null,"Kragoru tornya","1 Thargodan esszenca (#328)","1 bőrpáncél (#51)","72. labirintus\n[131,38]","73. labirintus\n[124,51]"]
[null,"(664. épület) [72,84]","1 remákszív (#264)","1 bőrpajzs (#45)"]
[null,null,"1 xirnox szív (#213)","1 bőrsisak (#57)"]
[null,"(665. épület) [132,46]","1 dözmöngszív (#122)","1 smaragd védőgyűrű (#223)"]
[null,null,"1 rókafarok (#124)","1 kőhegyű lándzsa (#7)"]
[]
[null,"Városháza","20 szögletes kő (#17)","Építs egy \nvárosépítkezésbe 200 TVP-t","1 ezüstshuriken (#327)","Építs egy \népületbe 200 TVP-t","1 kötél (#92)","Építs egy \nvárosépítkezésbe 200 TVP-t","1 vashegyű lándzsa (#182)","1000 arany (#50)"]
[null,"(Fehérbérc) (685. épület) [73,59]","20 bot (#4)",null,null,null,"1 nehezék (#258)",null,"1 vas dobónyíl (#189)"]
[]
[null,"Cirkuszi fősátor","134 amniosz (#203)","1 ?????????","1 élő proteinsólyom \nvagy dombi yeti\nvagy lajhárlord.","136. Labirintus","50 jóságpont\n** opcionális **"]
[null,"(714. épület) [90,88]",null,null,null,"[86,92]"]
[null,"(715. épület) [88,42]",null,null,null,"[89,36]"]
[]
[null,"Fejvadászház (Gatin) (757. épület) [44,99]","Nehéz Norbi - [49,103] ","Féktelen Fantom - [48,63] ","Ököl - [51,99]"]
[]
[null,"Fejvadászcéh (758. épület) - [99,82]","Vérmes Amazon - [101,82]","Brod - [109,109]","187. Labirintus\n[108,103]"]
[]
[null,"Toborzóiroda","192. labirintus"]
[null,"(Xantrox) (759. épület) [98,21]","[98,24]"]
[null,"(Libertan) (760. épület) [93,55]","[93,58]"]
[null,"(Huertol) (761. épület) [96,109]","[96,112]"]
[]
[null,"Sámánkunyhó (767. épület) [97,69]","2 mocsárivérc szem (#1758)","189. Labirintus\n[101,68]","190. Labirintus\n[111,75]","191. Labirintus\n[120,73]"]
[]
[null,"Fősátor (Vaskarom) (770. épület) [96,107]","3 vadászkés (#1264)","KLD 43 - [81,86]","KLD 44 - [138,121]","KLD 45 - [95,106]","204. Labirintus\n[95,106]","205. Labirintus\n[92,100]","KLD 46 - [101,103]"]
[null,null,"3 kígyóbőr öv (#410)","-","-","-",null,null,"csapatmunka 9+"]
[null,null,"3 vas fejpánt (#408)","40 TVP","40 TVP","40 TVP",null,null,"40 TVP"]
[null,null,"1 ryuku mellvért (#689)"]
[]
[null,"Bányászház (839. épület) [121,71]","1 rézdarab (#70)","121. Labirintus\n[120,57]","14 kaja (#2)","122. Labirintus\n[124,103]\n(csak az eleje)","122. Labirintus\n[124,103]","H 1106 (ősök könyve)\n--->\n123. Labirintus\n[136,36]"]
[null,null,"1 óndarab (#85)",null,"3 szeksztáns (#32)"]
[null,null,"1 vasérc (#152)",null,"1 bányászcsákány (#434)"]
[null,null,"1 ramit kő (#226)",null,"2 csatabárd (#555)"]
[null,null,"1 ilkin érc (#232)",null,"2 üllő (#1103)"]
[null,null,"1 pular kristály (#239)"]
[null,null,"1 ezüstdarab (#326)"]
[null,null,"1 mithril (#352)"]

{"sheet":"Kelet","index":1,"n_rows":52,"n_cols":13,"rows_kept":52,"cut":false,"hidden":false,"merged":[[49,4,51,4],[49,1,51,1],[49,2,51,2],[6,10,9,10],[6,6,9,6],[11,4,14,4],[11,6,14,6],[8,2,9,2],[6,2,7,2],[6,7,9,7],[6,8,9,8],[6,9,9,9],[16,1,18,1],[16,2,18,2],[16,3,18,3],[20,1,27,1],[1,2,4,2],[1,5,4,5],[1,6,4,6],[1,8,4,8],[1,9,4,9],[20,3,27,3],[20,5,27,5],[20,6,27,6],[20,7,27,7],[29,2,31,2],[29,3,31,3],[29,4,31,4],[29,6,31,6],[29,5,31,5],[16,8,18,8],[16,9,18,9],[16,10,18,10],[16,11,18,11],[16,12,18,12],[42,1,47,1],[42,2,47,2],[42,6,47,6],[42,9,47,9],[43,8,47,8],[33,1,35,1],[33,4,35,4],[33,6,35,6],[33,12,35,12],[33,9,35,9]]}
[]
[null,"Királyi palota","150 TVP építése\negy királyi emlékműbe","70. Labirintus","71. labirintus","Erdei bölcs\nküldetéssorozat\nteljesítése","95. Labirintus\n[198,28]","1 eknozol (#540)","Sir Argothius\nfelkeresése a \n98-as labirintusban\n(SF - Borzalom Fellegvára)","1 Techiulan amulettje (#499)"]
[null,"(Zangroz) (650. épület) [184,31]",null,"[169,29]","[151,66]",null,null,"1 iknegurin (#541)"]
[null,"(Alanor) (651. épület) [186,60]",null,"[170,58]","[159,41]",null,null,"1 mihlanil (#539)"]
[null,"(Roxat) (652. épület) [187,106]",null,"[167,105]","[148,100]"]
[]
[null,"Erdei bölcs","3 galachmit (#310)","74. Labirintus","75. Labirintus","76. Labirintus","77. Labirintus\n[169,7]","78. Labirintus\n[152,46]","79. Labirintus\n[211,99]","80. Labirintus\n[164,55]","94. Labirintus\n[193,12]"]
[null,"(666. épület) [182,27]",null,"[182,8]","[151,29]","[193,24]"]
[null,"(667. épület) [179,53]","1 zangrozi csizma (#451)","[149,50]","[169,63]","[187,71]"]
[null,"(668. épület) [189,101]",null,"[152,108]","[153,90]","[183,89]"]
[]
[null,"Invázióügyi Minisztérium","2 praglonc hártya (#215)","99. Labirintus","megfejtés varázslat\nismerete és elmondása","100. Labirintus","101. Labirintus\n[377,88]"]
[null,"(Zangroz) (687. épület) [185,32]","7 Thargodan esszencia (#328)","[183,32]",null,"[184,33]"]
[null,"(Alanor) (688. épület) [187,61] ","1 pszi kő (#248)","[185,61]",null,"[186,62]"]
[null,"(Roxat) (689. épület) [188,107]",null,"[186,107]",null,"[187,108]"]
[]
[null,"Tolvajcéh (Zangroz) (699. épület) [182,31]","BE 699 parancsnál:\nlopás 26+","1 kiráyi borosüveg (#1092)","KLD 1 - [183,29]","KLD 2 - [186,32]","KLD 3 - [184,31]","KLD 4 - [182,31]","117. Labirintus\n[177,29]","3 kremanta varázskő (#1094)","118. Labirintus\n[187,29]","119. Labirintus\n[185,33]","120. Labirintus\n[185,33]"]
[{"$nulls":4},"zárnyitás 20+","rejtőzködés 24+","lopás 34+","csapdaészlelés 20+"]
[{"$nulls":4},"40 TVP","40 TVP","40 TVP","40 TVP"]
[]
[null,"Bányászház (700. épület) [181,104]","1 rézdarab (#70)","121. Labirintus\n[184,93]","14 kaja (#2)","122. Labirintus\n[165,112]\n(csak az eleje)","122. Labirintus\n[165,112]\n(teljes)","H 1106 (ősök könyve)\n--->\n123. Labirintus\n[208,20]"]
[null,null,"1 vasérc (#152)",null,"3 szeksztáns (#32)"]
[null,null,"1 ramit kő (#226)",null,"1 bányászcsákány (#434)"]
[null,null,"1 ilkin érc (#232)",null,"2 csatabárd (#555)"]
[null,null,"1 mithril (#352)",null,"2 üllő (#1103)"]
[null,null,"1 mihlanil (#539)"]
[null,null,"1 adamantit (#627)"]
[null,null,"1 arkog kő (#632)"]
[]
[null,"Cirkuszi fősátor","134 amniosz (#203)","1 ?????????","1 élő proteinsólyom","136. Labirintus\n[189,42]","50 jóságpont\n** opcionális **"]
[null,"(713. épület) [176,39]"]
[null,"(727. épület) [193,95]"]
[]
[null,"Kémhálózat (Alanor) (744. épület) [187,62]","KLD 11 - [188,107]","KLD 12 - [188,107]","165. Labirintus\n[199,108]","KLD 13 - [198,111]","1 különleges varkaudar tekercs (#1585)","KLD 14 - [186,104]","KLD 15 - [186,104]","166. Labirintus\n[186,104]","KLD 16 - [188,107]","KLD 17 - [188,107]","Fielgring Zebulon felkutatása\nvéletlenszerűen bukkan fel Roxat valamely városmezején"]
[null,null,"titkosírás 20+","felderítés 48+",null,"1 hűségérme (megmarad)",null,"erő 70+","nyomkövetés 143+",null,"???","3000 arany"]
[null,null,"40 TVP","40 TVP",null,null,null,"40 TVP","40 TVP",null,"40 TVP","40 TVP"]
[]
[null,"Toborzóiroda","193. labirintus"]
[null,"(Zangroz) (762. épület) [183,33]","[183,37]"]
[null,"(Alanor) (763. épület) [186,62]","[186,66]"]
[null,"(Roxat) (764. épület) [188,108]","[188,112]"]
[]
[null,"Léghajóállomás (Alanor) (817. épület) [186,59]","minimum szint 65.","10 bahrot bőr (#938)","KLD 49 - [186,59]","KLD 50 - [308,65]","217. Labirintus\n[383,31]","KLD 51 - [186,59]","Ide kell Kyeli maszkja","10 manakristály (#500)","KLD 52 - [186,59]"]
[null,null,null,"4 hentelő bőr (#1768)","hajózás 60+","-",null,"Csata 1 légelemntál herceggel","218. Labirintus\n[491,66]",null,"-"]
[null,null,null,"8 kátrány (#580)","400 TVP","40 TVP",null,"80 TVP",null,null,"500 TVP"]
[null,null,null,"10 szuperkötél (#209)"]
[null,null,null,"5 vaspánt (#817)"]
[null,null,null,"1 hajóláda (#1637)"]
[]
[null,"Isbai jósda (831. épület) [199,55]","Léghajóállomás (#817)\nküldetéssorozat befejezése","KLD 80 - [187,62]","A küldetéssorozat innentől\na Sátortáborban (#832)\nfolytatódik"]
[null,null,null,"-"]
[null,null,null,"40 TVP"]

{"sheet":"SF","index":2,"n_rows":11,"n_cols":8,"rows_kept":11,"cut":false,"hidden":false,"merged":[[1,6,4,6],[1,7,4,7],[8,1,10,1],[8,4,10,4],[8,5,10,5],[1,2,4,2],[1,3,4,3],[1,4,4,4],[1,5,4,5]]}
[]
[null,"Borzalom fellegvára","24 mópat tetem (#584)","24 mutáns csont (#331)","1 gyémántkoponya (#644)","97. Labirintus\n[409,65]","98. Labirintus\n[409,65]","1 csillagrubin (#715)"]
[null,"(Északtűz) (671. épület) [311,11]"]
[null,"(Sárkányverem) (672. épület) [309,64]"]
[null,"(Lávafolyó) (673. épület) [312,117]"]
[]
[null,"Csontvár (756. épület) [401,94]","185. Labirintus\n[408,97]","186. Labirintus\n[393,95]","188. Labirintus\n[396,99]"]
[]
[null,"Thargodan könyvtár (Sárkányverem) (768. épület) [308,65]","1 kru'agon származék (#791)","1 og'khor esszencia","197. Labirintus\n[316,71]","198. Labirintus\n[318,60]"]
[null,null,"1 ml'othag származék (#792)","1 krg'humán esszencia"]
[null,null,"1 vg'axtol származék (#793)"]

{"sheet":"220+","index":3,"n_rows":23,"n_cols":12,"rows_kept":23,"cut":false,"hidden":false,"merged":[[3,1,4,1],[3,6,4,6],[3,4,4,4],[3,3,4,3],[6,1,11,1],[6,3,11,3],[6,4,11,4],[6,5,11,5],[6,6,11,6],[17,1,20,1],[17,2,20,2],[17,3,20,3],[17,4,20,4],[17,5,20,5]]}
[]
[null,"Történelemkutató intézet (691. épület)\n[242,44]\n[227,51]","103. Labirintus\n[226,16]","1 sziklozug comb (#858)","104. Labirintus\n[254,29]","105. Labirintus\n[251,55]","1 memóriaelixír (#860)","106. Labirintus\n[233,10]"]
[]
[null,"Barbár barlang (692. épület)\n[228,76]\n[228,111]\n[257,86]","120 víz (#27)","107. Labirintus\n[254,73]","108. Labirintus\n[238,94]","2 hernyópete (#878)","109. Labirintus\n[221,118]"]
[null,null,"15 kaja (#2)",null,null,"4 kitintüske (#879)"]
[]
[null,"Karbionális látomás (693. épület)\n[278,27]\n[289,16]\n[271,56]","3 parduanhályog (#909)","110. Labirintus\n[291,12]","111. Labirintus\n[270,57]","1 enkala deréköv (#915)","112. Labirintus\n[283,22]"]
[null,null,"13 pirkit (#153)"]
[null,null,"2 szürke briliáns (#908)"]
[null,null,"1 gyémántplazma (#910)"]
[null,null,"4 skorpiókarom (#911)"]
[null,null,"2 quwarg igazgyöngy (#912)"]
[]
[null,"Árnytündér szentély (694. épület)\n[270,97]","3 sötét kasza (#957)","113. Labirintus\n[286,116]","114. Labirintus\n[262,117]","115. Labirintus\n[285,67]","6 ytterium kőzet (#965)","116. Labirintus\n[272,71]"]
[]
[null,"Zarknod ónixpiramisa (695. épület)\n(259,63)\n(260,63)\n(259,64)\n(260,64)","500 FNO elköltése","4 dalebgad kristálykulcs (#980)","132. Labirintus\n[281,57]","133. Labirintus\n[291,121]","137. Labirintus\n[249,17]","138. Labirintus\n[363,109]","139. Labirintus\n[291,121]","140. Labirintus\n[422,81]","Tye'rukhagn bíra\n felkutatása\nvalamelyik tükörtoronyban","141. Labirintus\n[327,9]"]
[]
[null,"Vályogviskó (739. épület) [292,21]","A viskón táborozáskor\n2 ryuku orgyilkosok leverése","400 FNO beáldozása","163. Labirintus\n[186,30]","16-os hajózás és \nvitorláshajó ismerete","1 ryuku kesztyű"]
[{"$nulls":6},"1 ryuku karvédő"]
[{"$nulls":6},"1 ryuku kalapács"]
[{"$nulls":6},"1 ryuku ökölgyolcs"]
[]
[null,"Toborzóiroda (765. épület) [273,27]","194. Labirintus\n[273,30]"]

{"sheet":"Ryuku","index":4,"n_rows":50,"n_cols":10,"rows_kept":50,"cut":false,"hidden":false,"merged":[[20,5,27,5],[3,8,9,8],[11,1,14,1],[11,4,14,4],[11,6,14,6],[3,1,9,1],[3,3,9,3],[3,5,9,5],[3,6,9,6],[3,7,9,7],[16,1,18,1],[16,3,18,3],[16,4,18,4],[20,1,27,1],[20,3,27,3],[29,1,31,1],[29,2,31,2],[29,4,31,4],[29,7,31,7],[35,1,41,1],[35,2,41,2],[35,4,41,4],[35,6,41,6],[35,7,41,7],[35,8,41,8],[35,9,41,9],[43,1,47,1],[43,2,47,2],[43,4,47,4],[43,5,47,5],[43,6,47,6],[43,7,47,7],[43,8,47,8]]}
[]
[null,"Hoarián falu (726. épület) [490,11]","6 ryuku ?????","5 teriád fétis (#1296)","142. labirintus\n[475,93]","143. labirintus\n[436,100]","6 hoarián szentírás (#1339)","1 hoarián sárkánybébi"]
[]
[null,"Nemesi palota (728. épület) [449,19]","KLD 5","144. labirintus\n[446,19]","20 korty galócapálinka (#1474)","146. labirintus\n[447,35]","145. labirintus\n[446,19]","147. labirintus\n[433,56]","1 Zarknod fülbevalója (#1304)"]
[null,null,"1 kithszaki orgyilkos",null,"8 édesmoha csomó (#1479)"]
[null,null,"90 TVP",null,"2 azuka vese (#1462)"]
[{"$nulls":4},"1 sárga gyöngy (#1392)"]
[{"$nulls":4},"2 tűzsárkány ital (#1400)"]
[{"$nulls":4},"6 pöfeteg tojás (#1386)"]
[{"$nulls":4},"30 gourry tojás (#1455)"]
[]
[null,"Kikötő (729. épület) [450,21]","KLD 6","KLD 7","148. labirintus\n[451,20]","5 ??????","149. labirintus [451,20]"]
[null,null,"2 ryuku tolvajbanda","hajózás 35+",null,"5 ??????"]
[null,null,"100 TVP","80 TVP",null,"5 ??????"]
[{"$nulls":5},"1 rizspapír-vért"]
[]
[null,"Ryuku katonai tábor (733. épület) [463,84]","1 Batharak vállemeze","1 császári parancs (#1359)","160. labirintus\n[463,86]"]
[null,null,"1 Natharion karkötő"]
[null,null,"1 törp sisak"]
[]
[null,"Romos mágustorony (738. épület) [439,105]","2 azuka vese (#1462)","161. labirintus\n[469,79]","Kjotoannam plazmája","162. labirintus\n[439,105]"]
[null,null,"2 kígyónyelvet (#1473)",null,"6 yuong tűzpikkely (#1495)"]
[null,null,"3 kajmánhúst (#1457)",null,"6 cseng hópikkely (#1496)"]
[null,null,"6 terrathua levelet (#1443)",null,"3 aszott drakpikkely (#1310)"]
[null,null,"3 üveg rumot (#1419)",null,"1 stabil mágiakő (#1436)"]
[null,null,"3 anguaxin váladékot (#1382)",null,"6 teriád méreg (#1379)"]
[null,null,"6 póklábat (#1378)"]
[]
[]
[null,"Kalóztanya (743. épület) [445,119]","3 ryuku pecsétgyűrű (#1580)","KLD 8 - [450,21]","fossz ki 3 kereskedőhajót","KLD 9","KLD 10 - [445,19]","164. labirintus\n[446,118]"]
[null,null,null,"rejtőzködés",null,"Random mező a\n[433,125]-ös szigeten","50 TVP"]
[null,null,null,"80 TVP",null,"80 TVP"]
[]
[null,"Toborzóiroda (766. épület) [447,97]","195. Labirintus\n[447,100]","H 1753\n(lajstrom medál)","199. labirintus\n[443,99]"]
[]
[null,"Nemesi ház (772. épület) (Sawaki)","Nemesi palota (#728)\nküldetéssorozat befejezése","1 rémbőr kesztyű (#1468)","206. Labirintus\n[469,98]","KLD 47","207. Labirintus\n[459,81]","208. Labirintus\n[485,73]","209. Labirintus\n[475,82]","A 209-es labi után\nmég 1 extra BE parancs \negy másik körben"]
[null,null,null,"1 hósárkány pajzs (#1394)",null,"Csata Mahiro Keisukevel"]
[null,null,null,"2 Kjotoannam plazmája (#1485)",null,"50 TVP"]
[null,null,null,"3 tűzsárkány ital (#1400)"]
[null,null,null,"1 sárga gyöngy (#1392)"]
[null,null,null,"1 szerencse gyűrűje (#1391)"]
[null,null,null,"1 teriád vadászöv (#1389)"]
[]
[null,"Császári palota (787. épület) (Császárváros) [494,64]","Nemesi ház (#772)\nküldetéssorozat befejezése","KLD 48 - [494,64]","1 aprófaforgács (#1860)","210. Labirintus\n[496,64]","211. Labirintus\n[487,27]","A 211-es labi után\nmég 1 extra BE parancs \negy másik körben","212. Labirintus\n[494,64]"]
[null,null,null,"Báli öltözet\n(semmi más nem lehet KF-elve ! ) :"]
[null,null,null,"díszes nemesi ruha\ngyöngyfűzős szandál\nfűzött igazgyöngysor\nzafír gyűrű\ngyémánt gyűrű\nopál karperec\ndíszkatana / díszbuzogány / díszsai"]
[null,null,null,"2 kamikáze orgyilkos"]
[null,null,null,"100 TVP"]
[]
[null,"Ryuku mágustorony (789. épület) (Császárváros) [494,64]","213. Labirintus\n[186,60]","214. Labirintus\n[226,49]","A 214-es labi után\nmég 1 extra BE parancs \negy másik körben","215. Labirintus\n[353,52]","216. Labirintus\n[434,72]"]

{"sheet":"KF","index":5,"n_rows":36,"n_cols":12,"rows_kept":36,"cut":false,"hidden":false,"merged":[[31,7,35,7],[31,8,35,8],[31,9,35,9],[31,10,35,10],[31,1,35,1],[31,3,35,3],[31,4,35,4],[31,5,35,5],[31,6,35,6],[8,9,10,9],[8,10,10,10],[21,6,28,6],[21,9,28,9],[21,10,28,10],[8,7,10,7],[21,11,28,11],[12,8,19,8],[12,2,19,2],[12,4,19,4],[12,5,19,5],[21,8,28,8],[21,5,28,5],[12,6,19,6],[12,7,19,7],[21,7,28,7],[1,8,6,8],[8,1,10,1],[8,2,10,2],[8,4,10,4],[8,5,10,5],[8,6,10,6],[8,8,10,8],[1,1,6,1],[1,2,6,2],[21,1,28,1],[21,3,28,3],[21,4,28,4],[12,1,19,1],[1,6,6,6]]}
[]
[null,"Sziránusz őrposzt (819. épület) [600,41]","200 nerub szemfog (#1871)","KLD 53 - [606,49]","KLD 54 - [606,49]","10 kővirág gyümölcs (#1956)","219. Labirintus\n[607,49]","1 varázsháló (#1882)","220. Labirintus\n[605,49]"]
[null,null,null,"Csata 2 random nerubbal","Nyomkövetés 249+","5 gyökérsarjadék (#1964)",null,"1 Kabazuka gyűrűje (#1898)"]
[null,null,null,"50 TVP","40 TVP","15 orchidea kehely (#1876)",null,"2 nerub elixír (#1966)"]
[{"$nulls":5},"5 mimózabimbó (#1878)"]
[{"$nulls":5},"30 pöfeteg spóra (#1901)"]
[{"$nulls":5},"5 tulipán gumó (#1903)"]
[]
[null,"Buborékpalota (820. épület) [589, 55]","Sziránusz őrposzt (#819)\nküldetéssorozat befejezése","40 yeti szív (#1070)","221. Labirintus\n[611,118]","222. Labirintus\n[513,110]","A küldetéssorozat innentől a\nTűzmágus barlangban (#821)\nfolytatódik","Visszatérni a\nTűzmágus barlangba (#821)","Addig járni a nerub településeket, ameddig meg nem kapod a 225. labirintus térképét","225. Labirintus\n[616,91]","226. Labirintus\n[608,83]"]
[null,null,null,"40 dűneelf arckendő (#1920)"]
[null,null,null,"3 quwarg halálgömb (#1939)"]
[]
[null,"Tűzmágus barlang (821. épület)\n[582,78]\n[564,104]","sziránusz érme (#2005)\nmegléte, melyet a \nkarakter a Buborképalota\nküldisorban kap\n(222. labirintus után)","20 sáfránypor (#211)","223. Labirintus\n[612,9]","Visszatérni a \nBuborékpalotába (#820)","227. Labirintus\n[582,78]","224. Labirintus\n[535,75]","Visszatérni a \nBuborékpalotába (#820)"]
[null,null,null,"50 pirkit (#153)"]
[null,null,null,"10 kaktuszbogyó (#429)"]
[null,null,null,"10 tűzbimbó (#623)"]
[null,null,null,"20 varázskő (#305)"]
[null,null,null,"20 őskristály szilánk (#1525)"]
[null,null,null,"30 kronoplazma (#1953)"]
[null,null,null,"3 óelf csontjogar (#1867)"]
[]
[null,"Sátortábor (832. épület) [619,85]","1 Quttaqrua pörölye (#1948)","228. Labirintus\n[517,6]","229. Labirintus\n[542,96]","Duldegar felkutatása\nvalamelyik téridő-hasadékban","230. Labirintus\n[514,85]","231. Labirintus\n[550,48]","H 2025","232. Labirintus\n[525,92]","233. Labirintus\n[526,93]","Vissza az Isbai Jósdába (#831)"]
[null,null,"1 Agyzúzó (#1982)"]
[null,null,"1 Jégisten kopjája (#1915)"]
[null,null,"1 Vércsapoló (#1958)"]
[null,null,"1 Fadabama hasítója (#1880)"]
[null,null,"1 árnypenge (#1946)"]
[null,null,"5 sorsfordító (#1940)"]
[null,null,"1 Loronden levele (#2007)"]
[]
[]
[null,"Istenek szentélye (840. épület)\n[564,64]","100 zanszilánk (#2133)","KLD 81\n10 TVP\nmin. szörnyismeret: 100\n[564,64]","KLD 82\n100 TVP\nmin. főzés 100\n[596,109]","KLD 83\n100 TVP\nmin. vadászat 100\n[504,4]","KLD 84\n100 TVP\ncsata 2 xenomorf vadásszal\n[504,4]","KLD 85\n100 TVP\nmin. zene 100\n[504,4]","255. labirintus\n[513,49]","257. labirintus\n[513,49]","255. labirintus\n[519,11]"]
[null,null,"30 moa relikvia (#1971)"]
[null,null,"30 nerub totemfétis (#1968)"]
[null,null,"30 quwarg kitindarab (#1959)"]
[null,null,"30 mogul szemgolyó (#1976)"]

{"sheet":"Létsíkok","index":6,"n_rows":121,"n_cols":12,"rows_kept":121,"cut":false,"hidden":false,"merged":[[1,1,4,1],[1,3,4,3],[1,4,4,4],[1,5,4,5],[22,7,25,7],[31,1,35,1],[31,5,35,5],[31,6,35,6],[31,7,35,7],[22,1,29,1],[22,5,26,5],[22,3,25,3],[22,4,25,4],[31,4,35,4],[31,3,35,3],[31,2,35,2],[13,1,20,1],[13,3,16,3],[13,4,16,4],[13,5,17,5],[13,7,16,7],[6,1,10,1],[6,3,10,3],[6,4,10,4],[6,5,10,5],[62,4,65,4],[44,6,47,6],[53,6,57,6],[31,8,35,8],[1,8,4,8],[1,9,4,9],[1,10,4,10],[1,11,4,11],[1,6,4,6],[1,7,4,7],[6,7,10,7],[37,1,41,1],[37,3,41,3],[37,4,41,4],[53,10,56,10],[62,10,65,10],[62,7,65,7],[62,8,65,8],[62,9,66,9],[53,7,56,7],[53,8,56,8],[44,7,47,7],[44,8,47,8],[53,9,57,9],[37,5,41,5],[62,6,65,6],[44,1,51,1],[53,1,60,1],[62,1,66,1],[44,3,47,3],[44,4,47,4],[53,3,56,3],[53,4,56,4],[62,2,65,2],[62,3,65,3],[68,10,71,10],[68,11,71,11],[75,1,79,1],[81,1,85,1],[75,6,78,6],[81,6,84,6],[81,8,85,8],[81,11,84,11],[75,8,79,8],[75,11,78,11],[68,7,72,7],[68,8,72,8],[68,1,72,1],[68,3,72,3],[68,4,72,4],[68,5,72,5],[68,6,72,6],[68,9,72,9],[75,2,79,2],[75,3,79,3],[75,4,79,4],[75,5,79,5],[81,2,85,2],[81,3,85,3],[81,4,85,4],[81,5,85,5],[87,4,90,4],[87,5,90,5],[95,7,98,7],[95,1,99,1],[95,3,99,3],[95,4,99,4],[95,5,99,5],[95,6,98,6],[87,6,90,6],[87,7,90,7],[87,1,91,1],[117,1,121,1],[117,3,121,3],[117,4,121,4],[117,5,121,5],[117,6,121,6],[117,7,120,7],[117,8,120,8],[102,1,106,1],[110,1,114,1],[102,3,106,3],[102,4,106,4],[102,5,106,5],[110,3,114,3],[110,4,114,4],[110,5,114,5],[102,7,105,7],[110,7,113,7]]}
["A VÍZ LÉTSÍKJA"]
[null,"Sziránusz buborékház (841. épület)\n[649,20]","10 triton pikkely (#2243)","259. labirintus\n[654,32]","260. labirintus\n[644,19]","KLD 86\n200 TVP\nmin. felderítés : 200\n[649,20]","KLD 87\n100 TVP\nharc 2 fürge krabber ellen\n[662,6]","KLD 88\n100 TVP\nmin. úszás : 151\n[664,19]","KLD 89\n100 TVP\nmin. szörnyidomítás : 101\n[651,32]","KLD 90\n100 TVP\nszükséges: 1 memóriaserkentő\n[640,20]","261. labirintus\n[649,22]","65. Többszemélyes Kaland"]
[null,null,"10 szirén hajszál (#2250)"]
[]
[]
[]
[null,"Opati kalmár (843. épület)\n[647,33]","10 fekete gyöngy (#99)","KLD 91\n100 TVP\nmin. csapdakészítés : 60\n[662,6]","KLD 92\n100 TVP\n-\n[640,20]","KLD 93\n100 TVP\nharc 1 hullámsárkány ellen\nharc 1 Ishakar ellen\n[660,41]","1 hártyaköpeny (#2251)","262. labirintus\n[667,8]"]
[null,null,"10 quwarg igazgyöngy (#912)",null,null,null,"1 hártyakesztyű (#2252)"]
[null,null,"1 moa gyöngy (#378)",null,null,null,"1 hártyakarika (#2253)"]
[null,null,"1 sárga gyöngy (#1392)",null,null,null,"1 perpetuum (#2304)"]
[null,null,"1 tudás gyöngye (#522)"]
[]
["A FÖLD LÉTSÍKJA"]
[null,"Dolgrin háza (844. épület)\n[642,52]","100 fűszerkeverék (#1170)","KLD 94\n100 TVP\nmin. bányászat : 200\n[651,73]","KLD 95\n100 TVP\nmin. felderítés : 400\n[651,79]","KLD 96\n100 TVP\nharc 1 sziklabajnok ellen\nharc 1 sziklavezér ellen\n[641,52]","10 quwargszilánk (#2271)","263. labirintus\n[665,57]"]
[null,null,"100 pöfeteg spóra (#1901)",null,null,null,"10 óriásfétis  (#2272)"]
[null,null,"20 véka rizs (#1364)",null,null,null,"10 kristálypikkely (#2291)"]
[null,null,"20 pézsmatökmag (#934)",null,null,null,"1 nir formázó minta (#2270)"]
[null,null,"10 fokhagyma (#403)"]
[null,null,"10 gyöngymangó (#135)"]
[null,null,"10 nothar bogyó (#923)"]
[null,null,"10 kővirág gyümölcs (#1956)"]
[]
[null,"Dolgrun háza (845. épület)\n [651,73]","100 rézdarab (#70)","KLD 97\n100 TVP\nmin. főzés : 110\n[642,52]","KLD 98\n100 TVP\nmin. rejtőzködés : 120\n[644,56]","KLD 99\n100 TVP\nharc 1 földelem. gigász ellen\nharc 1 földelem. gigász ellen\n[644,56]","100 mithril (#352)","264. labirintus\n[667,46]"]
[null,null,"100 óndarab (#85)",null,null,null,"100 adamantit (#627)"]
[null,null,"100 vasérc (#152)",null,null,null,"50 titanit (#1412)"]
[null,null,"100 pirkit (#153)",null,null,null,"20 elemi szikla (#2288)"]
[null,null,"100 ezüstdarab (#326)",null,null,null,"10 intarzit (#2267)"]
[null,null,"100 ilkin érc (#232)",null,null,null,"10 kryzanit por (#2290)"]
[null,null,"100 ramit kő (#226)"]
[null,null,"100 pular kristály (#239)"]
[]
[null,"Shishiphusz piramisa (846. épület)\n[658,55]","1000 TVP építése az épülő piramisba","KLD 100\n100 TVP\nmin. szörnyismeret : 200\n[662,57]","KLD 101\n100 TVP\nharc 1 kristálysárkány ellen\nharc 1 kristálysárkány ellen\n[652,52]","KLD 102\n100 TVP\nszükséges : 20 elementáris kristály\n[662,57]","KLD 103\n150 TVP\nmin. vitalitás : 100\n[662,57]","2000 TVP építése az épülő piramisba","265. labirintus\n[634,81]"]
[]
[]
[]
[]
[]
[null,"Tharr Csarnokai (849. épület)\n[650,64]","rendelkezz a támogatásával","KLD 104\n200 TVP\nmin. szörnyismeret : 200\n[650,64]","KLD 105\n100 TVP\nharc 1 Daes Moran ellen\n[650,64]","268. labirintus\n[667,46]"]
[null,null,"Dolgrinnak"]
[null,null,"Dolgrunnak"]
[null,null,"Shishiphusznak"]
[]
[]
["A LEVEGŐ LÉTSÍKJA"]
[null,"Örömök Háza (850. épület)\n[639,111]","10 ovimon bogyó (#207)","KLD 106\n300 TVP\nmin. szerencsejáték : 50\n[639,111]","KLD 107\n300 TVP\nmin. szerencsejáték : 80\n[639,111]","3 furulya (#233)","KLD 108\n300 TVP\nmin. zene : 150\n[639,111]","KLD 109\n300 TVP\nmin. zene : 200\n[639,111]","269. labirintus\n[652,102]"]
[null,null,"10 mákrózsa (#56)",null,null,"2 tatu dob (#234)"]
[null,null,"20 kék orchidea (#68)",null,null,"1 dorony duda (#235)"]
[null,null,"20 mocsári penke (#148)",null,null,"2 lant (#238)"]
[null,null,"20 fiatalság itala (#473)",null,null,"10 sztázisszilánk (#2327)"]
[null,null,"10 kreommat szirom (#925)",null,null,"10 térkristály (#2336)"]
[null,null,"10 tátika bibe (#1905)",null,null,"1 Elenios tekercse (#2342)"]
[null,null,"100 sáfránypor (#211)"]
[]
[null,"Tolltanya (851. épület)\n[657,92]","100 bronzhegyű nyíl (#94)","KLD 110\n200 TVP\nmin. vitalitás : 80\n[661,97]","KLD 111\n100 TVP\ncsata 2 viharfarkassal\n[661,97]","1000 madártoll (#112)","KLD 112\n100 TVP\nmin. taumaturgia : 2000\n[630,86]","KLD 113\n100 TVP\nmin. felderítés : 370\n[669,86]","KLD 114\n100 TVP\nmin. felderítés : 300\n[669,125]","KLD 115\n100 TVP\nharc 1 vortexsárkány ellen\nharc 1 Vortexörvény ellen\n[630,125]","270. labirintus\n[650,97]"]
[null,null,"100 ubuk dobónyíl (#138)",null,null,"100 negátortoll (#1947)"]
[null,null,"100 vashegyű nyíl (#176)",null,null,"20 azúrtoll (#2332)"]
[null,null,"100 vas dobónyíl (#189)",null,null,"6 főnixtoll (#563)"]
[null,null,"100 ében nyílvessző (#848)",null,null,"1 aranytoll (#572)"]
[null,null,"100 ében dobónyíl (#849)",null,null,"10 sztázisszilánk (#2327)"]
[null,null,"100 acéltűz nyílvessző (#1126)",null,null,"10 fészektoll (#2338)"]
[null,null,"100 acéltűz dobónyíl (#1127)",null,null,"1 Elenios tekercse (#2342)"]
[]
[null,"Elmekastély (852. épület)\n[638,98]","KLD 116\n100 TVP\nmin. pszi : 770\n[638,98]","KLD 117\n200 TVP\ncsata 2 tudatfalóval\n[638,98]","271. labirintus\n[638,98]","1 Elenios tekercse (#2342)","KLD 118\n100 TVP\nmin. szörnyismeret : 300\n[638,98]","KLD 119\n200 TVP\nmin. pszi : 780\n[659,111]","KLD 120\n100 TVP\nmin. taumaturgia : 2000\n[659,111]","KLD 121\n200 TVP\nharc 2 vortexsárkánnyal\n1 db düh csillapító\n[663,118]","272. labirintus\n[650,97]"]
[{"$nulls":5},"4 sztázisbuborék (#2329)"]
[{"$nulls":5},"5 térkristály (#2336)"]
[{"$nulls":5},"5 fészektoll (#2338)"]
[]
[]
[null,"Elenios tükörpalotája (853. épület)\n[649,106]","mutasd fel :","KLD 122\n200 TVP\nmin. titkosírás : 220\n[649,106]","KLD 123\n200 TVP\nmin. felderítés : 500\n[194,12]","KLD 124\n200 TVP\nmin. bányászat : 300\n[598,76]","KLD 125\n200 TVP\n1 db intarzit\n[642,52]","KLD 126\n40 TVP\n2 db vízesszencia\n[651,26]","KLD 127\n100 TVP\n1 db agyértágító kenőcs\n[440,121]","KLD 128\n200 TVP\nmin. taumaturgia : 2000\n[278,27]","273. labirintus\n[421,10]","274. labirintus\n[504,4]"]
[null,null,"azúrtalizmán (#2333)"]
[null,null,"Ygan érméje (#2357)"]
[null,null,"smaragdtoll (#2352)"]
[]
[]
["A TŰZ LÉTSÍKJA"]
[null,"Reményparázs (854. épület)\n[680,37]","KLD 129\n300 TVP\nmin. gyógyítás : 350\n[186,60]","KLD 130\n300 TVP\nmin. gyógyítás : 1\n[494,64]","KLD 131\n300 TVP\nharc 1 földelem. gigász ellen\nharc 1 ht'duner mennydörgő ellen\n[610, 19]","KLD 132\n100 TVP\nmin. gyógyítás : 1\n[186,60]","275. labirintus\n[692,35]","100 tűzkő (#2420)","KLD 133\n300 TVP\nmin. taumaturgia : 2500\n[696,16]",null,null,"276. labirintus\n[692,8]"]
[{"$nulls":7},"10 tűzváltó totem (#2386)"]
[{"$nulls":7},"1 Dornodon rúnája (#2385)"]
[]
[]
[]
[null,"Kontinuum-tágító (855. épület)\n[696,16]","KLD 134\n300 TVP\nmin. felderítés : 500\n[186,60]","KLD 135\n300 TVP\nmin. felderítés : 550\n[494,64]","KLD 136\n300 TVP\nharc 1 földelem. gigász ellen\nharc 1 ht'duner mennydörgő ellen\n[610, 19]","KLD 137\n100 TVP\nmin. felderítés : 550\n[186,60]","275. labirintus\n[692,35]","100 tűzkő (#2420)","KLD 138\n300 TVP\nmin. taumaturgia : 2500\n[696,16]","20 zanszilánk (#2133)","10 tűzváltó totem (#2386)","276. labirintus\n[692,8]"]
[{"$nulls":7},"10 bazaltgolyó (#2387)",null,null,"10 tűzinda (#2418)"]
[{"$nulls":7},"1 Dornodon rúnája (#2385)",null,null,"20 tűzbimbó (#623)"]
[{"$nulls":10},"100 tűzesszencia (#2186)"]
[{"$nulls":10},"200 pirkit (#153)"]
[]
[null,"Tűz szentélye (856. épület)\n[704,22]","mutasd fel :","20 tűzkő (#2420)","284. labirintus\n[672,22]","285. labirintus\n[711,22]","286. labirintus\n[692,2]","287. labirintus\n[692,41]"]
[null,null,"Rubinnyakék (#2384)","2 Dornodon rúnája (#2385)"]
[null,null,null,"5 tűzváltó totem (#2386)"]
[null,null,null,"5 bazaltgolyó (#2387)"]
[null,null,null,"20 lángbimbó (#2226)"]
[null,null,null,"5 tűzinda (#2418)"]
[null,null,null,"100 szaké (#1295)"]
[]
[null,"Dornodon lávakastélya (857. épület)\n[692,22]","mutasd fel :","KLD 139\n200 TVP\n10 db pszi kristály\n[649, 22]","KLD 140\n200 TVP\n1 trófea nyaklánc\n[650, 64]","KLD 141\n200 TVP\n12 db lótuszvirág\n[649, 106]","288. labirintus\n[692,11]","289. labirintus\n[706,39]"]
[null,null,"Rubinnyakék (#2384)"]
[null,null,"izzó mágiakő (#2388)"]
[]
[]
[]
["AZ ÉLET FÖLDJE"]
[null,"Teknős hínártorony (858. épület))\n[677,76]","1 hebrencs csapda (#147)","KLD 142\n300 TVP\nmin. felderítés : 500\n[706, 79]","KLD 143\n300 TVP\nharc 1 tőzegelemtál ellen\nharc 1 hétfejű hidra ellen\n[707, 48]","KLD 144\n50 TVP\n10 db kristálygömb\n[676, 48]","10 narancsnárcisz (#2461)","290. labirintus\n[677,78]"]
[null,null,"1 karócsapda (#163)",null,null,null,"20 csepegő méz (#2462)"]
[null,null,"1 tüskecsapda (#242)",null,null,null,"50 ködharmat (#2488)"]
[null,null,"1 nyílcsapda (#243)",null,null,null,"3 zöldellő gumó (#2466)"]
[null,null,"1 gránátcsapda (#431)",null,null,null,"5 kőtojás (#2470)"]
[null,null,"1 kórócsapda (#1450)",null,null,null,"1 Sheran ékköve (#2478)"]
[null,null,"10 pukkanó tűcsapda (#336)",null,null,null,"1 térfókusz (#2486)"]
[]
[null,"Entek tisztása (859. épület)\n[691,49]","100 gyógykenőcs (#313)","KLD 145\n200 TVP\nmin. gyógyítás : 400\n[678, 61]","KLD 146\n200 TVP\nharc 1 toxikus elementál ellen\nharc 1 toxikus elementál ellen\n[689, 78]","KLD 147\n50 TVP\n10 db kristálygömb\n[676, 48]","1 éléetköpeny (#2482)","291. labirintus\n[687,63]"]
[null,null,"50 sámán gyógykenőcs (#1139)",null,null,null,"50 ködharmat (#2488)"]
[null,null,"20 tleikan életkő (#1143)",null,null,null,"3 zöldellő gumó (#2466)"]
[{"$nulls":6},"5 grokgumó (#2476)"]
[{"$nulls":6},"1 Sheran ékköve (#2478)"]
[{"$nulls":6},"1 térfókusz (#2486)"]
[]
[null,"Gemina kertje (860. épület)\n[694,61]","200 tűzesszencia (#2186)","KLD 148\n150 TVP\nmin. taumaturgia : 1500\n[650, 22]","KLD 149\n200 TVP\nharc 1 bazaltúr 2 ellen\nharc 1 gránitúr 2 ellen \n[650, 64]","KLD 150\n200 TVP\nharc 1 viharúr 2 ellen\nharc 1 orkánúr 2 ellen \n[650, 106]","KLD 151\n200 TVP\nharc 1 burjánzó lánglény ellen\nharc 1 kremafor ellen \n[692, 22]","292. labirintus\n[694,61]","293. labirintus\n[694,61]"]
[null,null,"200 vízesszencia (#2187)"]
[null,null,"200 légesszencia (#2188)"]
[null,null,"200 földesszencia (#2189)"]

{"sheet":"Makrók","index":7,"n_rows":27,"n_cols":7,"rows_kept":27,"cut":false,"hidden":false,"merged":[[17,1,18,1]]}
[]
[null,"Tündérpalota (750. épület)","KLD 18","KLD 19","KLD 20","KLD 21","KLD 22"]
[null,"[104,62]","vizestömlő (#3)","aranytű (#272)","fejsze (#1240)","olló (#335)","-"]
[null,"[204,36]","300 TVP","200 TVP","250 TVP","300 TVP","200 TVP"]
[null,"[243,48]"]
[null,"[543,98]"]
[]
[null,"Tündérpalota (751. épület)","KLD 23","KLD 24","KLD 25","KLD 26","KLD 27"]
[null,"[164,62]","vizestömlő (#3)","aranytű (#272)","fejsze (#1240)","olló (#335)","-"]
[null,"[291,109]","300 TVP","200 TVP","250 TVP","300 TVP","200 TVP"]
[null,"[600,24]"]
[]
[null,"Tündérpalota (752. épület)","KLD 28","KLD 29","KLD 30","KLD 31","KLD 32"]
[null,"[196,75]","vizestömlő (#3)","aranytű (#272)","fejsze (#1240)","olló (#335)","-"]
[null,"[488,35]","300 TVP","200 TVP","250 TVP","300 TVP","200 TVP"]
[]
[null,"Tündérpalota (753. épület)","KLD 33","KLD 34","KLD 35","KLD 36","KLD 37"]
[null,"[434,88]","vizestömlő (#3)","aranytű (#272)","fejsze (#1240)","olló (#335)","-"]
[null,null,"300 TVP","200 TVP","250 TVP","300 TVP","200 TVP"]
[]
[null,"Tündérpalota (754. épület)","KLD 38","KLD 39","KLD 40","KLD 41","KLD 42"]
[null,"[193,97]","vizestömlő (#3)","aranytű (#272)","fejsze (#1240)","olló (#335)","-"]
[null,"[489,98]","300 TVP","200 TVP","250 TVP","300 TVP","200 TVP"]
[]
[null,"Tündérpalota (830. épület)","KLD 55","KLD 56","KLD 57","KLD 58","KLD 59"]
[null,"[444,29]","vizestömlő (#3)","aranytű (#272)","fejsze (#1240)","olló (#335)","-"]
[null,"[527,44]","300 TVP","200 TVP","250 TVP","300 TVP","200 TVP"]

{"sheet":"Egyéb labirintusok","index":8,"n_rows":91,"n_cols":6,"rows_kept":91,"cut":false,"hidden":false,"merged":[]}
["##","Labirintus","Terület","koordináta","rövid leírás","Aktuális állapot"]
[21,"mínoszkúp","NY","random","orkok","nem ismert"]
[22,"mínoszkúp","NY","random","szörnykert","nem ismert"]
[23,"mínoszkúp","NY","random","varkaudar","nem ismert"]
[24,"mínoszkúp","NY","random","orkok","nem ismert"]
[25,"mínoszkúp","NY","random","csapdás","nem ismert"]
[26,"mínoszkúp","NY","random","szintszívó","nem ismert"]
[27,"mínoszkúp","NY","random","szintszívó","nem ismert"]
[28,"mínoszkúp","NY","random","orkok","nem ismert"]
[29,"mínoszkúp","NY","random","trollfás rövid","nem ismert"]
[30,"mínoszkúp","NY","random","burástya, sok ajtós","nem ismert"]
[31,"mínoszkúp","NY","random","orkok","nem ismert"]
[32,"mínoszkúp","NY","random","orkok","nem ismert"]
[53,"Varkaudar-Thargodan Invázió","NY","46,63","varkaudar ékkő, tudás gyöngye","nem ismert"]
[54,"Varkaudar-Thargodan Invázió","NY","98,82","légiós hátizsák, tgy, trikornis fókusz, esszenciavédelem II.","nem ismert"]
[55,"Varkaudar-Thargodan Invázió","K","191,97","varkaudar ékkő, thargodan vérgömb, trikornis fókusz, jégrúna tekercs","nem ismert"]
[56,"mínoszkúp","NY","random","élőholtak, galachmit","nem ismert"]
[57,"mínoszkúp","NY","random","vegyes, galachmit","nem ismert"]
[58,"mínoszkúp","NY","random","vegyes, galachmit","nem ismert"]
[59,"mínoszkúp","NY","random","kőkorszakik, galachmit","nem ismert"]
[60,"mínoszkúp","NY","random","óriásféreg, galachmit","nem ismert"]
[61,"mínoszkúp","NY","random","szopóköves","nem ismert"]
[62,"mínoszkúp","NY","random","galachmit","nem ismert"]
[63,"mínoszkúp","NY","random","varkaudar, galachmit","nem ismert"]
[64,"mínoszkúp","NY","random","tréfás, galachmit","nem ismert"]
[65,"mínoszkúp","NY","random","szörnykert, galachmit","nem ismert"]
[82,"mínoszkúp","K","random","szörnykert","nem ismert"]
[83,"mínoszkúp","K","161,114","víz alatti","kipucolva"]
[84,"mínoszkúp","K","161,103","Eldereth szilánkok","kipucolva"]
[85,"mínoszkúp","K","153,95","kényszerportos","ismert, nem bejárt"]
[86,"mínoszkúp","K","144,73","quwarg","kipucolva"]
[87,"mínoszkúp","K","149,102","szopókőírtás","ismert, nem bejárt"]
[88,"mínoszkúp","K","random","varkaudar","nem ismert"]
[89,"mínoszkúp","K","144,81","csapdás","kipucolva"]
[90,"mínoszkúp","K","157,80","pszi elementálok","ismert, nem bejárt"]
[91,"mínoszkúp","K","150,89","Főmágus tornya","kipucolva"]
[92,"mínoszkúp","K","144,111","férgek","ismert, nem bejárt"]
[93,"mínoszkúp","K","163,13","csupasz izom","kipucolva"]
[102,"Varkaudar-Thargodan Invázió","SF",350.64,"napdragnit, vörös zyelek","kipucolva"]
[124,"varkaudar látógömbös labi","NY","122,70","jéglényes","kipucolva"]
[125,"varkaudar látógömbös labi","SF","422,7","Őrült Montrix","kipucolva"]
[126,"varkaudar látógömbös labi","NY","105,117","kapcsoló azonosítás","kipucolva"]
[127,"varkaudar látógömbös labi","SF",308.97000000000003,"Thargodan raktár","kipucolva"]
[128,"varkaudar látógömbös labi","K","209,76","varkaudar che pap","kipucolva"]
[129,"varkaudar látógömbös labi","K","154,104","víz alatti, fenékkavicsok","kipucolva"]
[130,"varkaudar látógömbös labi","220+","284,22","Jégisten","kipucolva"]
[131,"varkaudar látógömbös labi","220+","253,90","Varkaudarok fő raktára","kipucolva"]
[134,"varkaudar látógömbös labi","NY","112,110","kisebb varkaudarok","kipucolva"]
[135,"Varkaudar-Thargodan Invázió","K","201,106","éjfókusz, immunitáskövek","kipucolva"]
[150,"Kincses térképből","Ryuku","486,91","Xhe-Po-Khai gyűrűje, rúnakristály","kipucolva"]
[151,"Kincses térképből","Ryuku","435,42","víz alatti, nemesi ruhadísz, rúnakristály","kipucolva"]
[152,"Kincses térképből","Ryuku","464,84","kalózok, 33 életvíz, rúnakristály","kipucolva"]
[153,"Kincses térképből","Ryuku","443,103","ódon vízköpők, 2 rúnakristály","kipucolva"]
[170,"Alanori Krónikás labirintus","NY","80,66","homokférgek, szent hehely","kipucolva"]
[171,"Alanori Krónikás labirintus","K","188,104","Kaszás Ubaron, holtak akarata, morgan szilánkja","kipucolva"]
[172,"Alanori Krónikás labirintus","SF","328,93","Ywgerothon, Thgd varázskönyv","kipucolva"]
[173,"Alanori Krónikás labirintus","220+","277,99","Jokonbia, 10 életvíz","kipucolva"]
[174,"Alanori Krónikás labirintus","Ryuku","457,34","Vuhtakoa elsüllyedt kikötője","kipucolva"]
[175,"Alanori Krónikás labirintus","NY","119,74","Pókok, méregtermő iszák","ismert, nem bejárt"]
[176,"Alanori Krónikás labirintus","K","171,65","Vérmedve-vadászat futam","kipucolva"]
[177,"Alanori Krónikás labirintus","SF","376,97","apró zsákocska","kipucolva"]
[178,"Alanori Krónikás labirintus","220+","224,32","esthar gyémántfétis, ősi esszencia, barna immunkő","kipucolva"]
[179,"Alanori Krónikás labirintus","Ryuku","492,61","ódon vízköpők, taumaturgikus öv, rúnakristály, kronokristály","kipucolva"]
[180,"Alanori Krónikás labirintus","K","179,89","derit láncvért, tanulmánytekercs, szivárványszív","kipucolva"]
[181,"Alanori Krónikás labirintus","220+","279,30","Snafall, varázsvédő varázs","kipucolva"]
[200,"Ganüid tájológömbből","SF","325,57","kristály vállvédő, ganüid pulzáns","kipucolva"]
[201,"Ganüid tájológömbből","SF","313,49","kronokristály, ganüid pulzáns","kipucolva"]
[202,"Ganüid tájológömbből","SF","314,56","kristály vállvédő, ganüid pulzáns","kipucolva"]
[203,"Ganüid tájológömbből","SF","322,57","kristály vállvédő, ganüid pulzáns","kipucolva"]
[234,"mínoszkúp","KF","538,23","nerubos, Putalaku, szörnykat","kipucolva"]
[235,"mínoszkúp","KF","505,27","vámpíros, vámpírvért","kipucolva"]
[236,"mínoszkúp","KF","538,16","Zhung, Zhug gyűrűje + 3 ében fókusz","kipucolva"]
[237,"mínoszkúp","KF","529,85","Tehgnaquirotan,Pókisten nyakéke, 4 ében fókusz","kipucolva"]
[238,"mínoszkúp","KF","609,12","akarnok,áldott fóliáns","kipucolva"]
[239,"mínoszkúp","KF",505.54,"Haarkonos, varázskönyv","kipucolva"]
[240,"mínoszkúp","KF","514,52","vizi, teknős mágiapáncél","kipucolva"]
[241,"mínoszkúp","KF","609,70","moás, moa spektroszkóp","kipucolva"]
[242,"mínoszkúp","KF","604,12","szörnykert, fekete lyuk összerakható","kipucolva"]
[243,"mínoszkúp","KF","522,90","bajnokos, bajnoktalizmán","kipucolva"]
[244,"Quwarg Inváziós jutalomlabi","NY",106.96,"quwarg demoralizátor","kipucolva"]
[245,"Quwarg Inváziós jutalomlabi","K","199,112","vörös zyel, sziklozug comb","kipucolva"]
[246,"Quwarg Inváziós jutalomlabi","220+",279.11399999999998,"quwarg végbélnyúlvány, ytter kövek, Buqqe karma","kipucolva"]
[247,"Quwarg Inváziós jutalomlabi","Ryuku",447.7,"kronokristály, quwarg opáldragnit","kipucolva"]
[248,"Quwarg Inváziós jutalomlabi","KF","612,80","kronokristály, quwarg moralizátor","kipucolva"]
[277,"Élőholt inváziós jutalomlabi","NY","127,70","esszenciafókusz","nem ismert"]
[278,"Élőholt inváziós jutalomlabi","K","196,47","nekrofókusz","nem ismert"]
[279,"Élőholt inváziós jutalomlabi","SF","348,57","napfókusz","nem ismert"]
[280,"Élőholt inváziós jutalomlabi","220+","283,60","ősi csillagfókusz ","nem ismert"]
[281,"Élőholt inváziós jutalomlabi","Ryuku","467,71","ryuku védőfókusz","nem ismert"]
[282,"Élőholt inváziós jutalomlabi","KF"," 541,90","óelf teremtőfókusz","kipucolva"]
[283,"Élőholt inváziós jutalomlabi","Föld sík","659,73","elemi fókusz","kipucolva"]

{"sheet":"Faji cuccok","index":9,"n_rows":16,"n_cols":13,"rows_kept":16,"cut":false,"hidden":false,"merged":[[5,3,5,4],[5,5,5,6],[5,7,5,8],[5,9,5,10]]}
[]
[null,"Válaszd ki a fajodat :",null,null,"kobudera"]
[]
[null,null,null,"Hogy elkészíttesd szükséged lesz"]
[]
[null,null,null,"Bo'adhun fétis",null,"Kyorg relikvia",null,"Árnytünde tekercs",null,"Esthar drágakő"]
["páncél",{"$f":"LOOKUP(2,1/(adatok!$A$1:$A$84=$E$2)/(adatok!$B$1:$B$84=$A7),adatok!$C$1:$C$84)","v":"1045."},{"$f":"LOOKUP(2,1/(adatok!$A$1:$A$84=$E$2)/(adatok!$B$1:$B$84=$A7),adatok!$D$1:$D$84)","v":"yiang mellény"},{"$f":"LOOKUP(2,1/(adatok!$A$1:$A$84=$E$2)/(adatok!$B$1:$B$84=$A7),adatok!$E$1:$E$84)","v":757},{"$f":"LOOKUP(2,1/(adatok!$A$1:$A$84=$E$2)/(adatok!$B$1:$B$84=$A7),adatok!$F$1:$F$84)","v":"bo'adhun aranygömb"},{"$f":"LOOKUP(2,1/(adatok!$A$1:$A$84=$E$2)/(adatok!$B$1:$B$84=$A7),adatok!$G$1:$G$84)","v":772},{"$f":"LOOKUP(2,1/(adatok!$A$1:$A$84=$E$2)/(adatok!$B$1:$B$84=$A7),adatok!$H$1:$H$84)","v":"nagymesteri pálca"},{"$f":"LOOKUP(2,1/(adatok!$A$1:$A$84=$E$2)/(adatok!$B$1:$B$84=$A7),adatok!$I$1:$I$84)","v":777},{"$f":"LOOKUP(2,1/(adatok!$A$1:$A$84=$E$2)/(adatok!$B$1:$B$84=$A7),adatok!$J$1:$J$84)","v":"Arx tekercs"},{"$f":"LOOKUP(2,1/(adatok!$A$1:$A$84=$E$2)/(adatok!$B$1:$B$84=$A7),adatok!$K$1:$K$84)","v":747},{"$f":"LOOKUP(2,1/(adatok!$A$1:$A$84=$E$2)/(adatok!$B$1:$B$84=$A7),adatok!$L$1:$L$84)","v":"natharion opál"},"--->",{"$f":"\"KT   \"&D7&\"   \"&F7&\"   \"&H7","v":"KT   757   772   777"}]
["sisak",{"$f":"LOOKUP(2,1/(adatok!$A$1:$A$84=$E$2)/(adatok!$B$1:$B$84=$A8),adatok!$C$1:$C$84)","v":"1046."},{"$f":"LOOKUP(2,1/(adatok!$A$1:$A$84=$E$2)/(adatok!$B$1:$B$84=$A8),adatok!$D$1:$D$84)","v":"yiang sapka"},{"$f":"LOOKUP(2,1/(adatok!$A$1:$A$84=$E$2)/(adatok!$B$1:$B$84=$A8),adatok!$E$1:$E$84)","v":759},{"$f":"LOOKUP(2,1/(adatok!$A$1:$A$84=$E$2)/(adatok!$B$1:$B$84=$A8),adatok!$F$1:$F$84)","v":"ezüstlevél"},{"$f":"LOOKUP(2,1/(adatok!$A$1:$A$84=$E$2)/(adatok!$B$1:$B$84=$A8),adatok!$G$1:$G$84)","v":773},{"$f":"LOOKUP(2,1/(adatok!$A$1:$A$84=$E$2)/(adatok!$B$1:$B$84=$A8),adatok!$H$1:$H$84)","v":"drakolder póráz"},{"$f":"LOOKUP(2,1/(adatok!$A$1:$A$84=$E$2)/(adatok!$B$1:$B$84=$A8),adatok!$I$1:$I$84)","v":778},{"$f":"LOOKUP(2,1/(adatok!$A$1:$A$84=$E$2)/(adatok!$B$1:$B$84=$A8),adatok!$J$1:$J$84)","v":"Bev tekercs"},{"$f":"LOOKUP(2,1/(adatok!$A$1:$A$84=$E$2)/(adatok!$B$1:$B$84=$A8),adatok!$K$1:$K$84)","v":747},{"$f":"LOOKUP(2,1/(adatok!$A$1:$A$84=$E$2)/(adatok!$B$1:$B$84=$A8),adatok!$L$1:$L$84)","v":"natharion opál"},"--->",{"$f":"\"KT   \"&D8&\"   \"&F8&\"   \"&H8","v":"KT   759   773   778"}]
["pajzs",{"$f":"LOOKUP(2,1/(adatok!$A$1:$A$84=$E$2)/(adatok!$B$1:$B$84=$A9),adatok!$C$1:$C$84)","v":"1047."},{"$f":"LOOKUP(2,1/(adatok!$A$1:$A$84=$E$2)/(adatok!$B$1:$B$84=$A9),adatok!$D$1:$D$84)","v":"yiang hárítópajzs"},{"$f":"LOOKUP(2,1/(adatok!$A$1:$A$84=$E$2)/(adatok!$B$1:$B$84=$A9),adatok!$E$1:$E$84)","v":763},{"$f":"LOOKUP(2,1/(adatok!$A$1:$A$84=$E$2)/(adatok!$B$1:$B$84=$A9),adatok!$F$1:$F$84)","v":"ro'galhal lánc"},{"$f":"LOOKUP(2,1/(adatok!$A$1:$A$84=$E$2)/(adatok!$B$1:$B$84=$A9),adatok!$G$1:$G$84)","v":767},{"$f":"LOOKUP(2,1/(adatok!$A$1:$A$84=$E$2)/(adatok!$B$1:$B$84=$A9),adatok!$H$1:$H$84)","v":"kyorg rúnakorong"},{"$f":"LOOKUP(2,1/(adatok!$A$1:$A$84=$E$2)/(adatok!$B$1:$B$84=$A9),adatok!$I$1:$I$84)","v":779},{"$f":"LOOKUP(2,1/(adatok!$A$1:$A$84=$E$2)/(adatok!$B$1:$B$84=$A9),adatok!$J$1:$J$84)","v":"Cru tekercs"},{"$f":"LOOKUP(2,1/(adatok!$A$1:$A$84=$E$2)/(adatok!$B$1:$B$84=$A9),adatok!$K$1:$K$84)","v":747},{"$f":"LOOKUP(2,1/(adatok!$A$1:$A$84=$E$2)/(adatok!$B$1:$B$84=$A9),adatok!$L$1:$L$84)","v":"natharion opál"},"--->","KT   763   767   779"]
["kesztyű",{"$f":"LOOKUP(2,1/(adatok!$A$1:$A$84=$E$2)/(adatok!$B$1:$B$84=$A10),adatok!$C$1:$C$84)","v":"1048."},{"$f":"LOOKUP(2,1/(adatok!$A$1:$A$84=$E$2)/(adatok!$B$1:$B$84=$A10),adatok!$D$1:$D$84)","v":"yiang kesztyű"},{"$f":"LOOKUP(2,1/(adatok!$A$1:$A$84=$E$2)/(adatok!$B$1:$B$84=$A10),adatok!$E$1:$E$84)","v":758},{"$f":"LOOKUP(2,1/(adatok!$A$1:$A$84=$E$2)/(adatok!$B$1:$B$84=$A10),adatok!$F$1:$F$84)","v":"gyémánt fétisrúd"},{"$f":"LOOKUP(2,1/(adatok!$A$1:$A$84=$E$2)/(adatok!$B$1:$B$84=$A10),adatok!$G$1:$G$84)","v":768},{"$f":"LOOKUP(2,1/(adatok!$A$1:$A$84=$E$2)/(adatok!$B$1:$B$84=$A10),adatok!$H$1:$H$84)","v":"raskhiir bozaka"},{"$f":"LOOKUP(2,1/(adatok!$A$1:$A$84=$E$2)/(adatok!$B$1:$B$84=$A10),adatok!$I$1:$I$84)","v":780},{"$f":"LOOKUP(2,1/(adatok!$A$1:$A$84=$E$2)/(adatok!$B$1:$B$84=$A10),adatok!$J$1:$J$84)","v":"Gór tekercs"},{"$f":"LOOKUP(2,1/(adatok!$A$1:$A$84=$E$2)/(adatok!$B$1:$B$84=$A10),adatok!$K$1:$K$84)","v":747},{"$f":"LOOKUP(2,1/(adatok!$A$1:$A$84=$E$2)/(adatok!$B$1:$B$84=$A10),adatok!$L$1:$L$84)","v":"natharion opál"},"--->","KT   758   768   780"]
["csizma",{"$f":"LOOKUP(2,1/(adatok!$A$1:$A$84=$E$2)/(adatok!$B$1:$B$84=$A11),adatok!$C$1:$C$84)","v":"1049."},{"$f":"LOOKUP(2,1/(adatok!$A$1:$A$84=$E$2)/(adatok!$B$1:$B$84=$A11),adatok!$D$1:$D$84)","v":"yiang surranó"},{"$f":"LOOKUP(2,1/(adatok!$A$1:$A$84=$E$2)/(adatok!$B$1:$B$84=$A11),adatok!$E$1:$E$84)","v":759},{"$f":"LOOKUP(2,1/(adatok!$A$1:$A$84=$E$2)/(adatok!$B$1:$B$84=$A11),adatok!$F$1:$F$84)","v":"ezüstlevél"},{"$f":"LOOKUP(2,1/(adatok!$A$1:$A$84=$E$2)/(adatok!$B$1:$B$84=$A11),adatok!$G$1:$G$84)","v":769},{"$f":"LOOKUP(2,1/(adatok!$A$1:$A$84=$E$2)/(adatok!$B$1:$B$84=$A11),adatok!$H$1:$H$84)","v":"trakuun napkorong"},{"$f":"LOOKUP(2,1/(adatok!$A$1:$A$84=$E$2)/(adatok!$B$1:$B$84=$A11),adatok!$I$1:$I$84)","v":781},{"$f":"LOOKUP(2,1/(adatok!$A$1:$A$84=$E$2)/(adatok!$B$1:$B$84=$A11),adatok!$J$1:$J$84)","v":"Hro tekercs"},{"$f":"LOOKUP(2,1/(adatok!$A$1:$A$84=$E$2)/(adatok!$B$1:$B$84=$A11),adatok!$K$1:$K$84)","v":747},{"$f":"LOOKUP(2,1/(adatok!$A$1:$A$84=$E$2)/(adatok!$B$1:$B$84=$A11),adatok!$L$1:$L$84)","v":"natharion opál"},"--->","KT   759   769   781"]
["köpeny",{"$f":"LOOKUP(2,1/(adatok!$A$1:$A$84=$E$2)/(adatok!$B$1:$B$84=$A12),adatok!$C$1:$C$84)","v":"1050."},{"$f":"LOOKUP(2,1/(adatok!$A$1:$A$84=$E$2)/(adatok!$B$1:$B$84=$A12),adatok!$D$1:$D$84)","v":"yiang köpeny"},{"$f":"LOOKUP(2,1/(adatok!$A$1:$A$84=$E$2)/(adatok!$B$1:$B$84=$A12),adatok!$E$1:$E$84)","v":761},{"$f":"LOOKUP(2,1/(adatok!$A$1:$A$84=$E$2)/(adatok!$B$1:$B$84=$A12),adatok!$F$1:$F$84)","v":"bronz nyakörv"},{"$f":"LOOKUP(2,1/(adatok!$A$1:$A$84=$E$2)/(adatok!$B$1:$B$84=$A12),adatok!$G$1:$G$84)","v":776},{"$f":"LOOKUP(2,1/(adatok!$A$1:$A$84=$E$2)/(adatok!$B$1:$B$84=$A12),adatok!$H$1:$H$84)","v":"arany foggyűrű"},{"$f":"LOOKUP(2,1/(adatok!$A$1:$A$84=$E$2)/(adatok!$B$1:$B$84=$A12),adatok!$I$1:$I$84)","v":782},{"$f":"LOOKUP(2,1/(adatok!$A$1:$A$84=$E$2)/(adatok!$B$1:$B$84=$A12),adatok!$J$1:$J$84)","v":"Iti tekercs"},{"$f":"LOOKUP(2,1/(adatok!$A$1:$A$84=$E$2)/(adatok!$B$1:$B$84=$A12),adatok!$K$1:$K$84)","v":747},{"$f":"LOOKUP(2,1/(adatok!$A$1:$A$84=$E$2)/(adatok!$B$1:$B$84=$A12),adatok!$L$1:$L$84)","v":"natharion opál"},"--->","KT   761   776   782"]
["vállvédő",{"$f":"LOOKUP(2,1/(adatok!$A$1:$A$84=$E$2)/(adatok!$B$1:$B$84=$A13),adatok!$C$1:$C$84)","v":"1051."},{"$f":"LOOKUP(2,1/(adatok!$A$1:$A$84=$E$2)/(adatok!$B$1:$B$84=$A13),adatok!$D$1:$D$84)","v":"yiang vállvédő"},{"$f":"LOOKUP(2,1/(adatok!$A$1:$A$84=$E$2)/(adatok!$B$1:$B$84=$A13),adatok!$E$1:$E$84)","v":760},{"$f":"LOOKUP(2,1/(adatok!$A$1:$A$84=$E$2)/(adatok!$B$1:$B$84=$A13),adatok!$F$1:$F$84)","v":"to'aghan orrkarika"},{"$f":"LOOKUP(2,1/(adatok!$A$1:$A$84=$E$2)/(adatok!$B$1:$B$84=$A13),adatok!$G$1:$G$84)","v":771},{"$f":"LOOKUP(2,1/(adatok!$A$1:$A$84=$E$2)/(adatok!$B$1:$B$84=$A13),adatok!$H$1:$H$84)","v":"idézőszőnyeg"},{"$f":"LOOKUP(2,1/(adatok!$A$1:$A$84=$E$2)/(adatok!$B$1:$B$84=$A13),adatok!$I$1:$I$84)","v":783},{"$f":"LOOKUP(2,1/(adatok!$A$1:$A$84=$E$2)/(adatok!$B$1:$B$84=$A13),adatok!$J$1:$J$84)","v":"Jen tekercs"},{"$f":"LOOKUP(2,1/(adatok!$A$1:$A$84=$E$2)/(adatok!$B$1:$B$84=$A13),adatok!$K$1:$K$84)","v":747},{"$f":"LOOKUP(2,1/(adatok!$A$1:$A$84=$E$2)/(adatok!$B$1:$B$84=$A13),adatok!$L$1:$L$84)","v":"natharion opál"},"--->","KT   760   771   783"]
["karvédő",{"$f":"LOOKUP(2,1/(adatok!$A$1:$A$84=$E$2)/(adatok!$B$1:$B$84=$A14),adatok!$C$1:$C$84)","v":"1052."},{"$f":"LOOKUP(2,1/(adatok!$A$1:$A$84=$E$2)/(adatok!$B$1:$B$84=$A14),adatok!$D$1:$D$84)","v":"yiang csuklópánt"},{"$f":"LOOKUP(2,1/(adatok!$A$1:$A$84=$E$2)/(adatok!$B$1:$B$84=$A14),adatok!$E$1:$E$84)","v":764},{"$f":"LOOKUP(2,1/(adatok!$A$1:$A$84=$E$2)/(adatok!$B$1:$B$84=$A14),adatok!$F$1:$F$84)","v":"mihlanil érme"},{"$f":"LOOKUP(2,1/(adatok!$A$1:$A$84=$E$2)/(adatok!$B$1:$B$84=$A14),adatok!$G$1:$G$84)","v":767},{"$f":"LOOKUP(2,1/(adatok!$A$1:$A$84=$E$2)/(adatok!$B$1:$B$84=$A14),adatok!$H$1:$H$84)","v":"kyorg rúnakorong"},{"$f":"LOOKUP(2,1/(adatok!$A$1:$A$84=$E$2)/(adatok!$B$1:$B$84=$A14),adatok!$I$1:$I$84)","v":785},{"$f":"LOOKUP(2,1/(adatok!$A$1:$A$84=$E$2)/(adatok!$B$1:$B$84=$A14),adatok!$J$1:$J$84)","v":"Lad tekercs"},{"$f":"LOOKUP(2,1/(adatok!$A$1:$A$84=$E$2)/(adatok!$B$1:$B$84=$A14),adatok!$K$1:$K$84)","v":747},{"$f":"LOOKUP(2,1/(adatok!$A$1:$A$84=$E$2)/(adatok!$B$1:$B$84=$A14),adatok!$L$1:$L$84)","v":"natharion opál"},"--->","KT   764   767   785"]
["lábvédő",{"$f":"LOOKUP(2,1/(adatok!$A$1:$A$84=$E$2)/(adatok!$B$1:$B$84=$A15),adatok!$C$1:$C$84)","v":"1053."},{"$f":"LOOKUP(2,1/(adatok!$A$1:$A$84=$E$2)/(adatok!$B$1:$B$84=$A15),adatok!$D$1:$D$84)","v":"yiang nadrág"},{"$f":"LOOKUP(2,1/(adatok!$A$1:$A$84=$E$2)/(adatok!$B$1:$B$84=$A15),adatok!$E$1:$E$84)","v":766},{"$f":"LOOKUP(2,1/(adatok!$A$1:$A$84=$E$2)/(adatok!$B$1:$B$84=$A15),adatok!$F$1:$F$84)","v":"aranyfétis"},{"$f":"LOOKUP(2,1/(adatok!$A$1:$A$84=$E$2)/(adatok!$B$1:$B$84=$A15),adatok!$G$1:$G$84)","v":769},{"$f":"LOOKUP(2,1/(adatok!$A$1:$A$84=$E$2)/(adatok!$B$1:$B$84=$A15),adatok!$H$1:$H$84)","v":"trakuun napkorong"},{"$f":"LOOKUP(2,1/(adatok!$A$1:$A$84=$E$2)/(adatok!$B$1:$B$84=$A15),adatok!$I$1:$I$84)","v":786},{"$f":"LOOKUP(2,1/(adatok!$A$1:$A$84=$E$2)/(adatok!$B$1:$B$84=$A15),adatok!$J$1:$J$84)","v":"Mul tekercs"},{"$f":"LOOKUP(2,1/(adatok!$A$1:$A$84=$E$2)/(adatok!$B$1:$B$84=$A15),adatok!$K$1:$K$84)","v":747},{"$f":"LOOKUP(2,1/(adatok!$A$1:$A$84=$E$2)/(adatok!$B$1:$B$84=$A15),adatok!$L$1:$L$84)","v":"natharion opál"},"--->","KT   766   769   786"]
["Síkok Kulcsa","1063.","Síkok Kulcsa",757,"bo'adhun aranygömb",768,"raskhiir bozaka",784,"Kij tekercs",{"$f":"VLOOKUP($E$2,adatok!A1:L82,11,0)","v":747},{"$f":"VLOOKUP($E$2,adatok!A1:L82,12,0)","v":"natharion opál"},"--->",{"$f":"\"KT   \"&D16&\"   \"&F16&\"   \"&H16","v":"KT   757   768   784"}]

{"sheet":"adatok","index":10,"n_rows":95,"n_cols":12,"rows_kept":95,"cut":false,"hidden":true,"merged":[[0,4,0,5],[0,6,0,7],[0,8,0,9],[0,10,0,11]]}
["faj",null,"ssz.","név","Bo'adhun fétis",null,"Kyorg relikvia",null,"Árnytünde tekercs",null,"Esthar drágakő"]
["ember","páncél","982.","mahagóni vért",761,"bronz nyakörv",769,"trakuun napkorong",777,"Arx tekercs",750,"türkíz karika"]
["ember","sisak","983.","mahagóni korona",758,"gyémánt fétisrúd",775,"bűvölt kristály",778,"Bev tekercs",750,"türkíz karika"]
["ember","pajzs","984.","mahagóni pajzs",760,"to'aghan orrkarika",773,"drakolder póráz",779,"Cru tekercs",750,"türkíz karika"]
["ember","kesztyű","985.","mahagóni kesztyű",760,"to'aghan orrkarika",772,"nagymesteri pálca",780,"Gór tekercs",750,"türkíz karika"]
["ember","csizma","986.","mahagóni csizma",759,"ezüstlevél",776,"arany foggyűrű",781,"Hro tekercs",750,"türkíz karika"]
["ember","köpeny","987.","mahagóni köpeny",762,"adamantit érme",770,"kyorg lepel",782,"Iti tekercs",750,"türkíz karika"]
["ember","vállvédő","988.","mahagóni vállvédő",763,"ro'galhal lánc",771,"idézőszőnyeg",783,"Jen tekercs",750,"türkíz karika"]
["ember","karvédő","989.","mahagóni karvédő",766,"aranyfétis",768,"raskhiir bozaka",785,"Lad tekercs",750,"türkíz karika"]
["ember","lábvédő","990.","mahagóni lábszárvédő",757,"bo'adhun aranygömb",774,"raskhiir talizmán",786,"Mul tekercs",750,"türkíz karika"]
["elf","páncél","991.","ezüsttölgy mellény",766,"aranyfétis",767,"kyorg rúnakorong",777,"Arx tekercs",752,"nyers zafír"]
["elf","sisak","992.","ezüsttölgy sapka",763,"ro'galhal lánc",768,"raskhiir bozaka",778,"Bev tekercs",752,"nyers zafír"]
["elf","pajzs","993.","ezüsttölgy pajzs",766,"aranyfétis",769,"trakuun napkorong",779,"Cru tekercs",752,"nyers zafír"]
["elf","kesztyű","994.","ezüsttölgy kesztyű",762,"adamantit érme",771,"idézőszőnyeg",780,"Gór tekercs",752,"nyers zafír"]
["elf","csizma","995.","ezüsttölgy surranó",757,"bo'adhun aranygömb",774,"raskhiir talizmán",781,"Hro tekercs",752,"nyers zafír"]
["elf","köpeny","996.","ezüsttölgy köpeny",760,"to'aghan orrkarika",773,"drakolder póráz",782,"Iti tekercs",752,"nyers zafír"]
["elf","vállvédő","997.","ezüsttölgy vállvédő",758,"gyémánt fétisrúd",772,"nagymesteri pálca",783,"Jen tekercs",752,"nyers zafír"]
["elf","karvédő","998.","ezüsttölgy karkötő",764,"mihlanil érme",775,"bűvölt kristály",785,"Lad tekercs",752,"nyers zafír"]
["elf","lábvédő","999.","ezüsttölgy nadrág",761,"bronz nyakörv",776,"arany foggyűrű",786,"Mul tekercs",752,"nyers zafír"]
["törpe","páncél","1000.","drakolit páncél",757,"bo'adhun aranygömb",770,"kyorg lepel",777,"Arx tekercs",755,"malachit füzér"]
["törpe","sisak","1001.","drakolit sisak",759,"ezüstlevél",772,"nagymesteri pálca",778,"Bev tekercs",755,"malachit füzér"]
["törpe","pajzs","1002.","drakolit pajzs",758,"gyémánt fétisrúd",771,"idézőszőnyeg",779,"Cru tekercs",755,"malachit füzér"]
["törpe","kesztyű","1003.","drakolit kesztyű",764,"mihlanil érme",769,"trakuun napkorong",780,"Gór tekercs",755,"malachit füzér"]
["törpe","csizma","1004.","drakolit csizma",766,"aranyfétis",774,"raskhiir talizmán",781,"Hro tekercs",755,"malachit füzér"]
["törpe","köpeny","1005.","drakolit köpeny",765,"káosztiara",775,"bűvölt kristály",782,"Iti tekercs",755,"malachit füzér"]
["törpe","vállvédő","1006.","drakolit vállvédő",763,"ro'galhal lánc",767,"kyorg rúnakorong",783,"Jen tekercs",755,"malachit füzér"]
["törpe","karvédő","1007.","drakolit karvédő",762,"adamantit érme",773,"drakolder póráz",785,"Lad tekercs",755,"malachit füzér"]
["törpe","lábvédő","1008.","drakolit lábszárvédő",760,"to'aghan orrkarika",768,"raskhiir bozaka",786,"Mul tekercs",755,"malachit füzér"]
["árnymanó","páncél","1009.","mordaith mellény",762,"adamantit érme",775,"bűvölt kristály",777,"Arx tekercs",756,"obszidián kereszt"]
["árnymanó","sisak","1010.","mordaith álarc",764,"mihlanil érme",768,"raskhiir bozaka",778,"Bev tekercs",756,"obszidián kereszt"]
["árnymanó","pajzs","1011.","mordaith pajzs",757,"bo'adhun aranygömb",774,"raskhiir talizmán",779,"Cru tekercs",756,"obszidián kereszt"]
["árnymanó","kesztyű","1012.","mordaith kesztyű",757,"bo'adhun aranygömb",776,"arany foggyűrű",780,"Gór tekercs",756,"obszidián kereszt"]
["árnymanó","csizma","1013.","mordaith cipő",758,"gyémánt fétisrúd",769,"trakuun napkorong",781,"Hro tekercs",756,"obszidián kereszt"]
["árnymanó","köpeny","1014.","mordaith köpeny",763,"ro'galhal lánc",772,"nagymesteri pálca",782,"Iti tekercs",756,"obszidián kereszt"]
["árnymanó","vállvédő","1015.","mordaith vállvédő",760,"to'aghan orrkarika",773,"drakolder póráz",783,"Jen tekercs",756,"obszidián kereszt"]
["árnymanó","karvédő","1016.","mordaith karkötő",759,"ezüstlevél",770,"kyorg lepel",785,"Lad tekercs",756,"obszidián kereszt"]
["árnymanó","lábvédő","1017.","mordaith nadrág",761,"bronz nyakörv",775,"bűvölt kristály",786,"Mul tekercs",756,"obszidián kereszt"]
["troll","páncél","1018.","uglaok páncél",766,"aranyfétis",767,"kyorg rúnakorong",777,"Arx tekercs",754,"csavart smaragd"]
["troll","sisak","1019.","uglaok harci maszk",766,"aranyfétis",772,"nagymesteri pálca",778,"Bev tekercs",754,"csavart smaragd"]
["troll","pajzs","1020.","uglaok nehéz pajzs",762,"adamantit érme",775,"bűvölt kristály",779,"Cru tekercs",754,"csavart smaragd"]
["troll","kesztyű","1021.","uglaok lánckesztyű",758,"gyémánt fétisrúd",769,"trakuun napkorong",780,"Gór tekercs",754,"csavart smaragd"]
["troll","csizma","1022.","uglaok szöges csizma",759,"ezüstlevél",770,"kyorg lepel",781,"Hro tekercs",754,"csavart smaragd"]
["troll","köpeny","1023.","uglaok láncköpeny",761,"bronz nyakörv",768,"raskhiir bozaka",782,"Iti tekercs",754,"csavart smaragd"]
["troll","vállvédő","1024.","uglaok vállvédő",763,"ro'galhal lánc",768,"raskhiir bozaka",783,"Jen tekercs",754,"csavart smaragd"]
["troll","karvédő","1025.","uglaok karvédő",760,"to'aghan orrkarika",776,"arany foggyűrű",785,"Lad tekercs",754,"csavart smaragd"]
["troll","lábvédő","1026.","uglaok lábszárvédő",765,"káosztiara",773,"drakolder póráz",786,"Mul tekercs",754,"csavart smaragd"]
["gnóm","páncél","1027.","moa védőmellény",760,"to'aghan orrkarika",772,"nagymesteri pálca",777,"Arx tekercs",749,"jáde rakshallion"]
["gnóm","sisak","1028.","moa sisak",765,"káosztiara",775,"bűvölt kristály",778,"Bev tekercs",749,"jáde rakshallion"]
["gnóm","pajzs","1029.","moa hárítópajzs",759,"ezüstlevél",769,"trakuun napkorong",779,"Cru tekercs",749,"jáde rakshallion"]
["gnóm","kesztyű","1030.","moa védőkesztyű",761,"bronz nyakörv",771,"idézőszőnyeg",780,"Gór tekercs",749,"jáde rakshallion"]
["gnóm","csizma","1031.","moa cipő",758,"gyémánt fétisrúd",770,"kyorg lepel",781,"Hro tekercs",749,"jáde rakshallion"]
["gnóm","köpeny","1032.","moa köntös",757,"bo'adhun aranygömb",771,"idézőszőnyeg",782,"Iti tekercs",749,"jáde rakshallion"]
["gnóm","vállvédő","1033.","moa vállap",766,"aranyfétis",774,"raskhiir talizmán",783,"Jen tekercs",749,"jáde rakshallion"]
["gnóm","karvédő","1034.","moa karkötő",{"$nulls":4},785,"Lad tekercs",749,"jáde rakshallion"]
["gnóm","lábvédő","1035.","moa nadrág",764,"mihlanil érme",767,"kyorg rúnakorong",786,"Mul tekercs",749,"jáde rakshallion"]
["alakváltó","páncél","1036.","arany sárkányvért",760,"to'aghan orrkarika",775,"bűvölt kristály",777,"Arx tekercs",753,"jácint díszkő"]
["alakváltó","sisak","1037.","arany sárkánysisak",765,"káosztiara",772,"nagymesteri pálca",778,"Bev tekercs",753,"jácint díszkő"]
["alakváltó","pajzs","1038.","arany sárkánypajzs",761,"bronz nyakörv",773,"drakolder póráz",779,"Cru tekercs",753,"jácint díszkő"]
["alakváltó","kesztyű","1039.","arany sárkánykesztyű",763,"ro'galhal lánc",772,"nagymesteri pálca",780,"Gór tekercs",753,"jácint díszkő"]
["alakváltó","csizma","1040.","arany sárkánycsizma",764,"mihlanil érme",767,"kyorg rúnakorong",781,"Hro tekercs",753,"jácint díszkő"]
["alakváltó","köpeny","1041.","arany sárkányköpeny",758,"gyémánt fétisrúd",768,"raskhiir bozaka",782,"Iti tekercs",753,"jácint díszkő"]
["alakváltó","vállvédő","1042.","arany sárkányvállap",757,"bo'adhun aranygömb",776,"arany foggyűrű",783,"Jen tekercs",753,"jácint díszkő"]
["alakváltó","karvédő","1043.","arany sárkánykarperec",762,"adamantit érme",774,"raskhiir talizmán",785,"Lad tekercs",753,"jácint díszkő"]
["alakváltó","lábvédő","1044.","arany sárkánynadrág",760,"to'aghan orrkarika",770,"kyorg lepel",786,"Mul tekercs",753,"jácint díszkő"]
["kobudera","páncél","1045.","yiang mellény",757,"bo'adhun aranygömb",772,"nagymesteri pálca",777,"Arx tekercs",747,"natharion opál"]
["kobudera","sisak","1046.","yiang sapka",759,"ezüstlevél",773,"drakolder póráz",778,"Bev tekercs",747,"natharion opál"]
["kobudera","pajzs","1047.","yiang hárítópajzs",763,"ro'galhal lánc",767,"kyorg rúnakorong",779,"Cru tekercs",747,"natharion opál"]
["kobudera","kesztyű","1048.","yiang kesztyű",758,"gyémánt fétisrúd",768,"raskhiir bozaka",780,"Gór tekercs",747,"natharion opál"]
["kobudera","csizma","1049.","yiang surranó",759,"ezüstlevél",769,"trakuun napkorong",781,"Hro tekercs",747,"natharion opál"]
["kobudera","köpeny","1050.","yiang köpeny",761,"bronz nyakörv",776,"arany foggyűrű",782,"Iti tekercs",747,"natharion opál"]
["kobudera","vállvédő","1051.","yiang vállvédő",760,"to'aghan orrkarika",771,"idézőszőnyeg",783,"Jen tekercs",747,"natharion opál"]
["kobudera","karvédő","1052.","yiang csuklópánt",764,"mihlanil érme",767,"kyorg rúnakorong",785,"Lad tekercs",747,"natharion opál"]
["kobudera","lábvédő","1053.","yiang nadrág",766,"aranyfétis",769,"trakuun napkorong",786,"Mul tekercs",747,"natharion opál"]
["mutáns","páncél","1054.","mélybíbor páncél",765,"káosztiara",773,"drakolder póráz",777,"Arx tekercs",751,"rítusónix"]
["mutáns","sisak","1055.","mélybíbor álarc",763,"ro'galhal lánc",767,"kyorg rúnakorong",778,"Bev tekercs",751,"rítusónix"]
["mutáns","pajzs","1056.","mélybíbor pajzs",764,"mihlanil érme",770,"kyorg lepel",779,"Cru tekercs",751,"rítusónix"]
["mutáns","kesztyű","1057.","mélybíbor kesztyű",757,"bo'adhun aranygömb",774,"raskhiir talizmán",780,"Gór tekercs",751,"rítusónix"]
["mutáns","csizma","1058.","mélybíbor csizma",760,"to'aghan orrkarika",772,"nagymesteri pálca",781,"Hro tekercs",751,"rítusónix"]
["mutáns","köpeny","1059.","mélybíbor köpeny",765,"káosztiara",776,"arany foggyűrű",782,"Iti tekercs",751,"rítusónix"]
["mutáns","vállvédő","1060.","mélybíbor vállpánt",758,"gyémánt fétisrúd",769,"trakuun napkorong",783,"Jen tekercs",751,"rítusónix"]
["mutáns","karvédő","1061.","mélybíbor karvédő",761,"bronz nyakörv",775,"bűvölt kristály",785,"Lad tekercs",751,"rítusónix"]
["mutáns","lábvédő","1062.","mélybíbor lábszárvédő",764,"mihlanil érme",771,"idézőszőnyeg",786,"Mul tekercs",751,"rítusónix"]
["Síkok Kulcsa"]
[]
[]
[]
[null,"ember",null,"nem ismert"]
[null,"elf",null,"ismert, nem bejárt"]
[null,"törpe",null,"kipucolva"]
[null,"árnymanó"]
[null,"troll"]
[null,"gnóm"]
[null,"alakváltó"]
[null,"kobudera"]
[null,"mutáns"]

{"sheet":"Ősi és fattyas cuccok","index":11,"n_rows":51,"n_cols":14,"rows_kept":51,"cut":false,"hidden":false,"merged":[[2,2,2,6],[2,7,2,12],[24,2,24,8],[43,2,43,8],[43,9,43,10]]}
[null,"Éjfattyas tárgyak és komponenseik táblázata"]
[]
[null,null,"származékok",{"$nulls":4},"esszenciák",{"$nulls":5},"További komponens"]
["##","Név","ghraiton","kruagon","mlothag","rdalv","vgaxtol","ghraiton","kruagon","mlothag","rdalv","vgaxtol","dorka"]
[794,"Vg'axtol gyűrű","-","-",3,"-",3,"-","-","-","-","-","-","1 smaragd védőgyűrű"]
[795,"Gh'raiton fókusz",3,3,"-","-","-","-","-","-","-","-","-","1 arany papi karkötő"]
[796,"Rd'alv amulett",1,"-",1,2,"-","-","-","-","-","-","-","1 rubin fejék"]
[797,"Ml'othag abroncs",1,1,1,1,1,"-","-","-","-","-","-","1 bunthar bőr"]
[1064,"Tl'urlang konverter",4,4,4,4,4,"-","-","-","-","-","-","4 tl'urlang erőkő"]
[803,"Ősi karkötő","-","-","-",8,8,1,"-","-","-","-","-","-"]
[807,"Ősi sisak",10,10,"-","-","-","-","-","-","-",1,"-","-"]
[804,"Ősi csizma","-","-",10,"-",10,"-","-","-",1,"-","-","-"]
[805,"Ősi vállvédő",7,"-",7,"-","-","-",1,"-","-","-","-","-"]
[806,"Ősi nyaklánc","-",9,"-",9,"-","-","-",1,"-","-","-","-"]
[810,"Ősi kard","-",5,5,5,"-",1,"-","-","-",1,"-","-"]
[809,"Ősi páncél","-","-","-","-","-",2,2,2,2,2,1,"-"]
[]
[null,"Összesen:",{"$f":"SUM(C6,C8,C10:C16)","v":21},{"$f":"SUM(D6,D8,D10:D16)","v":28},23,23,19,4,3,3,3,4,1]
[null,"A Karakternél van :",11,11,6,25,9,3,1,3,10,3,0]
[]
[null,"Ebből a listából erősen idejét múlt és talán felesleges összerakni, a Vg'axtol gyűrű, A Rd'alv amulett és a Tl'urlang konverter"]
[null,"Ezen tárgyak kihagyásával jelentősen rövidíthető a fattyazás, ugyanis, ha van kellő számú extra kincsker rajtunk, akkor a származékok beszerzése jelenti a szűk keresztmetszetet majd"]
[null,"A Ml'othag abroncs a legeslegelső tárgy legyen amit összerakunk"]
[]
[null,null,"esszenciák (Zarknod sor)"]
[null,null,"nt'lagod","dr'thanox","bn'oxrad","zg'umrad","en'trauk","ud'mroag","og'lhobn"]
[1190,"Urgol lángpallosa",1,1,1,2]
[1191,"Urgol lángdárdája",1,1,1,2]
[1192,"Urgol lángbuzogánya",1,1,1,2]
[1193,"dr'thanox gyűrű",null,3,1,{"$nulls":4},"+5 AC, +10 támadás, +5 szer., +220 maxép."]
[1194,"nt'lagod karkötő",3,null,1,{"$nulls":4},"+7 AC, +5 erő, +150 maxép., -30 sebződés/ütés fattyaktól"]
[1195,"Zt'tuzzarxn végzete",{"$nulls":4},2,2,2]
[1196,"og'lhobn fülbevaló",{"$nulls":5},1,2,"-35 AC, +15 támadás, +7 szer., +200 maxép."]
[1197,"2 db ud'mroag kulcs",{"$nulls":4},2,4,2]
[1216,"Urgol lángkesztyűje",1,1,1,2]
[]
[null,"Összesen kell:",4,4,3,2,{"$f":"SUM(G27:G35)","v":4},{"$f":"SUM(H27:H35)","v":7},6]
[null,"A Karakternél van :"]
[]
[null,"Az utolsó 3 fatty csak a 141-es labiban található. Az első 4 fatty a 140-esben van, de a 141-esben is van belőlük annyi, hogy minden legyártható belőlük."]
[null,"Mindenesetre az Urgol fegyvert, az nt'lagod karkötőt és a dr'thanox gyűrűt érdemes még a 140esből kiütni!"]
[null,"Az ud'mroag kulcsból 2 kell - fentebb a duplázott ár van a táblázatban, a fegyverekből csak a főszakihoz érdemes egyet gyártani."]
[]
[null,null,"4.0 éjfatty esszenciák és egyéb kellékek",{"$nulls":6},"További komponens"]
[null,null,"og'khor","iz'gribbor","krg'humán","pr'queztoor","gl'gtremp","ud'mroag","zg'vzung"]
[1777,"éjkulcs",2,2,{"$nulls":5},"-"]
[1799,"zg'vzung csatoló",null,null,null,1,1,null,1,"1 gór formázó minta"]
[1803,"kristály dragnit",null,null,1,1,1,null,null,"2 tl'urlang gömb","2 kristályszilánk"]
[]
[null,"Összesen kell:",{"$f":"SUM(C46:C48)","v":2},{"$f":"SUM(D46:D48)","v":2},1,2,2,0,1]
[null,"A Karakternél van :"]

{"sheet":"Avatárok","index":12,"n_rows":9,"n_cols":14,"rows_kept":9,"cut":false,"hidden":false,"merged":[]}
["##","Név","Trezsör","Táj","Pozíció","Szint","Támadás","Max. ÉP","AC(sz,v,ü)","Sebzés","Sebezhetőség","Immunitás","Spec.","Varázslat"]
[7099,"Virotac, a művész","Virotac gyűrűje",220,"264,49",60,145,4400,"220-220-220",null,null,"tűz alapú varázslat nem hat rá\nméreg nem hat rá","Mentális támadás (4 ÉP-re esel)","fehér glóbusz\nnegatív csapás"]
[7100,"Lordac, a katona","Lordac kesztyűje","SF","422,17",70,150,6800,"235-235-215","1x60",0.7,null,"Itélkezik","fehér glóbusz\nistenítélet"]
[7101,"Arutac, az öreg","Arutac mithrilöve",220,"228,61",62,125,6000,"215-215-190","1x100",0.5,"hideg alapú varázslat nem hat rá",null,"fehér glóbusz"]
[7102,"Katrac, a kegyetlen","Katrac káoszkönyve",220,"262,120",66,125,5000,"220-220-220","1x100/4x5d25+60",null,"halál alapú varázslat nem hat rá","halálkiáltás/öregít","lángtenger"]
[7103,"Iniac, a csábító","Iniac nyaklánca","K (labi)","161,11",60,110,3000,"200-200-200","8x5d20+90",0.7,null,"Labirintusban van (melyet Katrac) legyőzése után kapsz meg, benne sok csapda (-6 támadás, vp szívó (1. szint 8-as pont)) illuzio (nehezen mentheto) vagy halalkiáltás","negatív csapás\npuha ütés"]
[7104,"Gotac, a szikla","Gotac sisakja","Ryuku","448,49",70,null,7000,"250-250-205","2x5d10+500",null,null,null,"nagyobb pajzszúzás"]
[7105,"Zortac, a szörny","Zortac méregfoga",220,"241,13",66,180,6701,"210-210-210","10x5d10+400",null,null,"gázt lehel","fekete energia"]
[7106,"Baurtac, a hatalmas","Baurtac kristálya","SF","312,65",60,160,3600,"216-216-216","1x6d25+120",null,"tűz alapú varázslat nem hat rá\nenergia alapú varázslat nem hat rá\nméreg nem hat rá",null,"manarobbantás\nistenítélet\nenergiacsóva\nfekete energia"]

{"sheet":"Kihívás Tornya","index":13,"n_rows":9,"n_cols":3,"rows_kept":9,"cut":false,"hidden":false,"merged":[]}
["Kihívás Tornya",null,"fordulószám"]
["1. szint","teljesítve",188]
["2. szint","teljesítve",195]
["3. szint","teljesítve",419]
["4. szint"]
["5. szint","teljesítve",228]
["6. szint"]
["7. szint"]
["8. szint"]

{"sheet":"Dragnitok","index":14,"n_rows":33,"n_cols":17,"rows_kept":33,"cut":false,"hidden":false,"merged":[]}
["##","Tárgy neve","Tulajdnoság","Lelőhely","Fegyver","Pajzs","Páncél","Sisak","Köpeny","Vállvédő","Kesztyű","Öv","Nadrág","Csizma","Nyaklánc","Karkötő","Gyűrű"]
[1741,"rubin dragnit","+6 védettség, +6 támadás, +3 sebzés","39. TK - Draklenek ellenfele",null,"X","X","X"]
[1742,"quwarg dragnit","+5 maxÉP","Quwarg ikerboly (#1740)","X","X","X","X","X","X","X","X","X","X","X","X","X"]
[1743,"smaragd dragnit","+10 védettség, +10 támadás, +10 max. ép","40. TK - Ryuku követ palotája",null,"X","X","X",null,null,null,"X"]
[1744,"vörös dragnit","+5 védettség, +5 támadás","41. TK - Honvédő harc a tengerparton","X",{"$nulls":5},"X"]
[1745,"jég dragnit","+5 max. ép., +5 mentő tűz ellen","189. (NY) és 224. (KF) labirintus","X","X","X","X","X","X","X","X","X","X","X","X","X"]
[1748,"topáz dragnit","+3 sebzés","olimpiai nyeremény / olimpiai licit","X"]
[1803,"kristály dragnit","+15 sebzés ganüidek ellen","KT-vel gyártható","X","X","X","X",null,null,"X"]
[1886,"képlékeny dragnit","+10 IQ, 20 max. vp, -10 ellenfél mentőre","szinguláris szaggató (#7246)",null,null,null,"X"]
[1928,"tündöklő dragnit","+10 védettség, +10 szer., +10 max. ép","Rabu thin főbiztos (#7393)",null,"X",null,null,null,"X"]
[1929,"hibátlan dragnit","+10 erő, +10 ügyesség, +5 támadás","Rabu thin főbiztos (#7393)",{"$nulls":6},"X","X"]
[1930,"vihardragnit","+10 szer., +20 max. ép, +20 max vp, +10 HM","Rabu thin főbiztos (#7393)",{"$nulls":8},"X","X"]
[1931,"sáfránydragnit","+5 védettség, +5 támadás, +5 sebzés","Rabu thin főbiztos (#7393)","X"]
[1932,"borostyándragnit","+10 védettség, +10 egészség, +40 max. ép","Rabu thin főbiztos (#7393)",null,null,"X",null,"X"]
[1933,"haláldragnit","+10 védettség, +10 szer., +10 tau, +10 teo","Rabu thin főbiztos (#7393)","X","X"]
[2015,"parázsdragnit","+10 szer., +100 max. vp., +20 tau, +10 őstau","Démonparázs (#7413)",null,null,"X"]
[2060,"nekromanta dragnit","+20% max életkor, +10 egészség, +20 max. ép, +10 vitalitás","48. TK - Mhufexi exhumálás",{"$nulls":5},"X",null,"X"]
[2061,"Daxx Igazgyöngy","+5 egészség, +5 ügyesség, +5 tau, +5 őstau","50. TK - 22-es Dimenziórés",null,null,"X",{"$nulls":4},"X","X"]
[2066,"quwarg opáldragnit","+2 vitalitás, +2 MxTu, +40 max. ép","247. labirintus (Ryuku)",{"$nulls":12},"X"]
[2074,"képlékeny metadragnit","+20 IQ, 40 max. vp, -20 ellenfél mentőre","képlékeny dragnit + metakövek",null,null,null,"X"]
[2075,"tündöklő metadragnit","+20 védettség, +20 szer., +20 max. ép","tündöklő dragnit + metakövek",null,"X",null,null,null,"X"]
[2076,"hibátlan metadragnit","+20 erő, +20 ügyesség, +10 támadás","hibátlan dragnit + metakövek",{"$nulls":6},"X","X"]
[2077,"viharos metadragnit","+20 szer., +40 max. ép, +40 max vp, +20 HM","vihardragnit + metakövek",{"$nulls":8},"X","X"]
[2078,"sáfrányos metadragnit","+10 védettség, +10 támadás, +10 sebzés","sáfránydragnit + metakövek","X"]
[2079,"borostyán metadragnit","+20 védettség, +20 egészség, +80 max. ép","borostyándragnit + metakövek",null,null,"X",null,"X"]
[2080,"halálos metadragnit","+20 védettség, +20 szer., +20 tau, +20 teo","haláldragnit + metakövek","X","X"]
[2081,"parázsló metadragnit","+20 szer., +200 max. vp., +40 tau, +20 őstau","parázsdragnit + metakövek","X","X"]
[]
[]
["Egyedi / már nem beszerzhető dragnitok"]
[1752,"Beansidhe dragnitja","+10 szerencse","Olimpiai aukción lehetett venni","X","X","X","X","X","X","X","X","X","X","X","X","X"]
[1801,"Bufa dragnitja","+10 erő","Ősi Hajnal lovagjai KT-tárgya","X","X","X","X","X","X","X","X","X","X","X","X","X"]
[1822,"varkaudar dragnit","+5 max. ép","2. vark. invázió jutalma a lázadóknak","X","X","X","X","X","X","X","X","X","X","X","X","X"]